Cogmind - Beta 15 @@@ ROGUE MODE // 2025.10.07 @ 16:16:10 Player: YA-B01 Result: Escaped! Performance ------------- Evolutions (9) 4500 Regions Visited (34) 6800 Robots Destroyed (249) 1245 Value Destroyed (6321) 6321 Prototype IDs (118) 2360 Alien Tech Used (4) 800 Bonus (10517) 10517 TOTAL SCORE: 32543 Bonus ------- High Alert Combat Kills 126 Follower Combat Kills 1308 Registered with UFD 300 Met Optimus in HQ 500 Met Imprinter 300 Met Zhirov 300 Found Hidden Lab 3000 Acquired SGEMP 2000 Win 3000 Friendly Fire -317 Cogmind --------- Core Integrity 926/1600 Matter 300/300 Energy 93/100 System Corruption 0% Temperature Cool (0) Movement Core (50) Location To Epsilon Eridani Parts ------- > --- POWER (2) -------- (None) > --- PROPULSION (8) --- (None) > --- UTILITY (14) ----- Enhanced Optical Array Advanced Signal Interpreter Improved Hacking Suite Improved Hacking Suite System Shield Improved System Shield Advanced Corruption Screen > --- WEAPON (2) ------- (None) > --- INVENTORY (5) ---- Phasing AFG Micro-nuke Launcher Force Lance SGEMP Prototype Peak State ------------ > --- POWER ------------ Micro Antimatter Reactor Light Quantum Reactor > --- PROPULSION ------- Field Propulsion Drive Field Propulsion Drive Nuclear Pulse Array Nuclear Pulse Array Impulse Thruster Array > --- UTILITY ---------- Medium Storage Unit Enhanced Optical Array Advanced Sensor Array Advanced Signal Interpreter Seismic Detector Centrium Light Armor Plating Centrium Light Armor Plating Experimental Powered Armor Improved Hacking Suite Advanced Hacking Suite System Mapper System Shield Improved System Shield Advanced Corruption Screen > --- WEAPON ----------- Dual-blade Saw Plasma Lance > --- INVENTORY -------- Advanced Sensor Array Experimental Cloaking Device Phasing AFG Transdimensional Reconstructor Core Reset Matrix Micro-nuke Launcher Force Lance SGEMP Prototype [Rating: 174] Favorites ----------- Power Light Fission Core Engine Cooled Ion Engine Power Core Light Fission Core Reactor Micro Antimatter Reactor Propulsion Armored Treads Treads Armored Treads Leg Aluminum Leg Wheel Compact Wheel Flight Unit Improved VTOL Module Utility Hacking Suite Device Deep Structural Scanner Storage High-capacity Storage Unit Processor Advanced Signal Interpreter Hackware Hacking Suite Protection Hardened Medium Armor Plating Weapon Advanced Beam Rifle Energy Gun Advanced Beam Rifle Energy Cannon Beam Cannon Ballistic Gun Enhanced Autogun Launcher Rocket Launcher Impact Weapon Shock Maul Slashing Weapon Makeshift Axe Piercing Weapon Plasma Lance Special Melee Weapon Improved Datajack Build | -11 -10 -10 -10 -9 -8 -8 -8 -8 -6 -6 -6 -6 -6 -6 -5 -5 -5 -5 -5 -5 -5 -4 -4 -4 -4 -4 -4 -3 -3 -3 -2 -2 -1 -1 ------- Run | Yrd Mat Min Exi Min Mat Sto Rec Scr Fac Was Fac Low Low Zio Pro Fac Was Fac Upp Upp Zhi Pro Fac Ext Cet Arc Hub Res Arm Lab Res Tes Acc Com Slots Evolved 18 | . . . . . 4 . . . 4 . . . . . . 2 . . . . . . 2 . . . . 2 . . 2 . 2 . Power . | . . . . . . . . . . . . . . . . . . . . . . . . . . . . . . . . . . . Propulsion 6 | . . . . . 2 . . . 2 . . . . . . . . . . . . . . . . . . 1 . . 1 . . . Utility 12 | . . . . . 2 . . . 2 . . . . . . 2 . . . . . . 2 . . . . 1 . . 1 . 2 . Weapon . | . . . . . . . . . . . . . . . . . . . . . . . . . . . . . . . . . . . Parts Attached 203 | 6 7 7 1 1 50 24 4 6 16 3 7 1 2 1 . 11 2 8 2 . 4 2 7 . 1 7 1 2 1 4 3 5 4 3 Power 23 | 1 2 . . 1 4 3 . 1 2 . 2 . . . . 1 . . . . . 2 1 . 1 . . . . . 1 1 . . Engine 10 | 1 2 . . 1 2 3 . 1 . . . . . . . . . . . . . . . . . . . . . . . . . . Core 9 | . . . . . 2 . . . 2 . 2 . . . . 1 . . . . . 1 1 . . . . . . . . . . . Reactor 4 | . . . . . . . . . . . . . . . . . . . . . . 1 . . 1 . . . . . 1 1 . . Propulsion 54 | 2 . 2 . . 17 10 2 3 5 . 2 . . . . 2 . 2 . . 1 . . . . 1 . . 1 . 1 1 1 1 Treads 25 | 2 . 2 . . 10 9 2 . . . . . . . . . . . . . . . . . . . . . . . . . . . Leg 6 | . . . . . 6 . . . . . . . . . . . . . . . . . . . . . . . . . . . . . Wheel 4 | . . . . . 1 . . 3 . . . . . . . . . . . . . . . . . . . . . . . . . . Hover . | . . . . . . . . . . . . . . . . . . . . . . . . . . . . . . . . . . . Flight 19 | . . . . . . 1 . . 5 . 2 . . . . 2 . 2 . . 1 . . . . 1 . . 1 . 1 1 1 1 Utility 72 | 1 3 1 1 . 13 2 . 2 5 3 1 1 1 1 . 6 2 6 1 . 3 . 2 . . 4 1 2 . 2 1 3 3 1 Device 29 | . 2 1 . . 4 . . 2 2 1 1 . 1 1 . 2 2 2 1 . 1 . 2 . . 1 . 1 . . 1 . 1 . Storage 6 | 1 1 . 1 . 1 . . . 1 . . . . . . . . . . . . . . . . . . . . . . 1 . . Processor 6 | . . . . . . . . . 2 . . . . . . 1 . 1 . . . . . . . . 1 . . . . . 1 . Hackware 20 | . . . . . 3 . . . . 2 . . . . . 3 . 3 . . 1 . . . . 3 . 1 . 1 . 1 1 1 Protection 11 | . . . . . 5 2 . . . . . 1 . . . . . . . . 1 . . . . . . . . 1 . 1 . . Artifact . | . . . . . . . . . . . . . . . . . . . . . . . . . . . . . . . . . . . Weapon 54 | 2 2 4 . . 16 9 2 . 4 . 2 . 1 . . 2 . . 1 . . . 4 . . 2 . . . 2 . . . 1 Energy Gun 12 | 1 . . . . 9 1 1 . . . . . . . . . . . . . . . . . . . . . . . . . . . Energy Cannon 3 | . 1 . . . . . . . . . . . . . . . . . . . . . . . . . . . . 2 . . . . Ballistic Gun 17 | 1 . 3 . . 5 6 1 . . . . . . . . . . . . . . . 1 . . . . . . . . . . . Ballistic Cannon . | . . . . . . . . . . . . . . . . . . . . . . . . . . . . . . . . . . . Launcher 7 | . 1 1 . . 2 . . . 1 . 1 . . . . . . . . . . . . . . 1 . . . . . . . . Special Weapon . | . . . . . . . . . . . . . . . . . . . . . . . . . . . . . . . . . . . Impact Weapon 2 | . . . . . . . . . . . . . . . . 1 . . . . . . 1 . . . . . . . . . . . Slashing Weapon 5 | . . . . . . 1 . . 1 . 1 . 1 . . . . . . . . . . . . . . . . . . . . 1 Piercing Weapon 1 | . . . . . . . . . . . . . . . . . . . . . . . 1 . . . . . . . . . . . Special Melee Weapon 7 | . . . . . . 1 . . 2 . . . . . . 1 . . 1 . . . 1 . . 1 . . . . . . . . Unidentified Prototypes 28 | . . . . . 6 5 . . 2 1 . . . 1 . 1 2 . . . 3 . 1 . . . . . . 5 . 1 . . Corrupted Parts 1 | . . . . . . . . . . . . . . . . . . . . . . 1 . . . . . . . . . . . . System Corruption 1 | . . . . . . . . . . . . . . . . . . . . . . 1 . . . . . . . . . . . . Parts Lost 69 | . 1 5 . 1 15 6 . . 2 . . . . 1 . 1 . 4 . . . 4 . 5 1 . . . 1 . . 6 1 15 Power 11 | . 1 . . 1 1 1 . . 1 . . . . . . . . . . . . 2 . . 1 . . . . . . 1 . 2 Propulsion 21 | . . 2 . . 7 3 . . . . . . . . . . . 1 . . . . . 1 . . . . . . . 1 1 5 Utility 23 | . . 1 . . 3 1 . . 1 . . . . . . 1 . 3 . . . . . 3 . . . . 1 . . 3 . 6 Weapon 14 | . . 2 . . 4 1 . . . . . . . 1 . . . . . . . 2 . 1 . . . . . . . 1 . 2 Highest Loss Streak 15 | . 1 3 . 1 6 5 . . 2 . . . . 1 . 1 . 2 . . . 2 . 2 1 . . . 1 . . 5 1 15 To Critical Strikes . | . . . . . . . . . . . . . . . . . . . . . . . . . . . . . . . . . . . Average Backups 13 | 3 9 11 11 10 18 19 19 19 10 9 10 9 10 10 10 9 9 8 9 9 9 9 9 9 8 8 9 8 9 8 8 8 7 7 Power . | . . 1 1 . . . 1 . . 1 1 . 1 1 1 1 1 1 1 1 1 . . 1 . . . . . 1 . . . . Propulsion 3 | 1 2 2 1 1 3 7 7 6 . 1 1 3 3 3 3 2 2 1 1 1 . 1 1 1 1 1 1 . 1 1 1 . . . Utility 5 | . 3 4 5 5 5 4 5 10 7 6 5 5 5 5 5 5 5 5 6 6 6 6 5 5 5 5 6 5 4 4 2 3 3 4 Weapon 3 | . 2 3 4 4 7 6 4 1 1 1 1 1 1 1 1 1 1 1 1 1 1 . . 1 1 1 1 2 3 2 2 2 2 1 Tool/Special . | . . . . . . . . . . . . . . . . . . . . . . . . . . . . . . . . . . . Unused Backups 64 | . 4 3 1 1 14 12 . 2 6 . 4 1 . 1 . . . . . . 1 . 4 . . . . . 2 3 . 1 . 4 Power 4 | . 1 . . . 1 . . 1 . . . . . . . . . . . . . . 1 . . . . . . . . . . . Propulsion 17 | . 3 3 . . 3 5 . . . . 1 . . . . . . . . . . . 1 . . . . . 1 . . . . . Utility 24 | . . . 1 . 3 1 . 1 6 . 2 1 . 1 . . . . . . 1 . 2 . . . . . 1 2 . 1 . 1 Weapon 16 | . . . . 1 7 6 . . . . . . . . . . . . . . . . . . . . . . . 1 . . . 1 Tool/Special 3 | . . . . . . . . . . . 1 . . . . . . . . . . . . . . . . . . . . . . 2 Average Slot Usage (%) 94 | . 91 99 100 100 96 99 100 99 96 97 100 99 100 98 93 86 94 91 93 94 90 81 86 81 62 78 84 84 83 79 82 72 78 77 Engine 6 | . 14 14 14 14 8 9 9 9 1 . . . . . . . . . . . . . . . . . . . . . . . . . Core 1 | . . . . . . . . . 4 6 6 6 6 6 6 5 5 5 5 5 5 3 1 5 2 . . . . . . . . . Treads 19 | . 28 28 28 28 29 35 36 31 . . . . . . . . . . . . . . . . . . . . . . . . . . Flight 11 | . . . . . . . . . 39 40 40 40 40 40 40 30 29 28 29 29 26 23 20 21 15 15 15 19 19 18 15 17 17 17 Device 6 | . 5 13 14 14 4 . . 2 12 13 13 12 12 11 12 10 11 11 16 17 13 5 9 9 5 7 5 7 7 4 6 4 6 5 Storage 8 | . 14 14 14 14 9 9 9 9 6 6 6 6 6 6 6 5 5 5 5 5 5 5 5 5 5 5 5 4 4 4 4 4 3 2 Processor 3 | . . . . . . . . . 4 6 6 6 6 6 6 7 11 11 11 11 11 11 10 10 10 10 10 9 9 9 8 8 10 11 Hackware 13 | . . . . . 15 18 18 18 12 10 13 13 13 13 13 13 17 14 11 11 13 17 15 11 10 19 26 24 23 26 21 15 19 19 Protection 4 | . . . . . 6 8 9 6 . . . . . 1 . . . . . . . 4 9 6 5 5 5 4 4 3 7 9 7 6 Energy Gun 3 | . . . . . 8 6 4 9 . . . . . . . . . . . . . . . . . . . . . . . . . . Energy Cannon 1 | . 13 12 . . . . . . . . . . . . . . . . . . . . . . . . . . . . . . . . Ballistic Gun 6 | . 13 15 28 16 9 7 9 9 . . . . . . . . . . . . . . . . . . . . . . . . . . Slashing Weapon 1 | . . . . . . 2 3 . 5 6 6 6 6 5 6 4 5 5 5 5 5 3 . . . . . . . . . . . 1 Special Melee Weapon 1 | . . . . . . 1 1 . 4 6 6 5 6 4 . 2 5 5 5 5 5 2 5 5 . 3 5 4 4 3 4 2 . . Peak Build Rating 174 | 7 9 12 12 13 33 41 41 44 61 66 68 72 72 76 69 89 95 90 90 85 94 95 117 117 88 115 115 127 127 140 162 164 169 174 Average Rating 54 | 4 8 11 12 12 27 38 40 40 57 61 64 68 67 67 64 78 89 83 85 85 85 89 110 108 86 105 115 124 125 130 158 142 156 155 On Entrance 76 | . 7 9 12 12 11 32 41 41 36 58 64 68 72 67 69 64 89 89 90 85 85 94 92 117 88 87 115 115 127 123 136 158 157 158 Naked Turns . | . . . . . . . . . . . . . . . . . . . . . . . . . . . . . . . . . . . Heaviest Build 65 | 13 33 33 30 33 63 65 63 61 25 25 25 25 25 42 24 25 23 28 28 26 26 31 37 28 29 38 30 31 31 37 49 54 54 55 Greatest Support 82 | 40 40 40 40 40 82 82 80 80 30 30 30 30 32 32 30 35 33 35 35 35 36 36 36 36 32 39 39 45 45 45 55 56 56 56 Greatest Overweight (x) 6 | . . . . . 6 6 . 5 . . . . . 1 . 1 . . . . . 4 1 . . . . . . . . . . . Average Overweight (x) . | . . . . . . . . . . . . . . . . . . . . . . . . . . . . . . . . . . . Largest Inventory Capacity 20 | 8 15 15 15 15 20 20 20 20 20 10 10 10 10 10 10 10 10 10 10 10 10 10 10 10 10 10 10 10 10 10 10 10 10 10 Average Capacity 15 | 7 12 15 15 15 19 20 20 20 10 10 10 10 10 10 10 10 10 10 10 10 10 10 10 10 10 10 10 10 10 10 10 10 10 9 Most Carried 20 | 8 15 15 13 15 20 20 20 20 20 10 10 10 10 10 10 10 10 10 10 10 10 10 10 10 10 10 10 10 10 10 10 10 10 10 Average Carried 14 | 3 9 12 12 11 18 19 19 19 9 9 9 9 10 9 10 9 9 9 10 10 9 9 9 10 9 9 9 8 9 9 8 9 9 9 Final Capacity 20 | 8 15 15 15 15 20 20 20 20 10 10 10 10 10 10 10 10 10 10 10 10 10 10 10 10 10 10 10 10 10 10 10 10 10 5 Final Carried 20 | 8 15 12 12 15 20 20 20 20 10 10 10 10 10 10 10 10 10 10 10 10 10 10 10 10 9 9 10 10 10 10 9 10 10 5 Class Distribution -------------------- 26% | Hacker-Scout 20% | Hacker-Mutant 19% | Commander-Mutant 11% | Scavenger-Mutant 11% | Mutant 6% | Wizard-Scout Dominant Class ---------------- Mutant | -10/Materials Mutant | -10/Mines Scavenger-Mutant | -10/Exiles Scavenger-Mutant | -9/Mines Scavenger-Mutant | -8/Materials Hacker-Mutant | -8/Storage Commander-Mutant | -8/Recycling Commander-Mutant | -8/Scraptown Hacker-Scout | -6/Factory Hacker-Scout | -6/Waste Hacker-Scout | -6/Factory Hacker-Scout | -6/Lower Caves Hacker-Scout | -6/Lower Caves Hacker-Scout | -6/Zion Hacker-Scout | -5/Proximity Caves Hacker-Scout | -5/Factory Hacker-Scout | -5/Waste Hacker-Scout | -5/Factory Hacker-Scout | -5/Upper Caves Hacker-Scout | -5/Upper Caves Hacker-Scout | -5/Zhirov Hacker-Scout | -4/Proximity Caves Hacker-Scout | -4/Factory Hacker-Scout | -4/Extension Hacker-Mutant | -4/Cetus Hacker-Mutant | -4/Archives Wizard-Mutant | -4/Hub_04(d) Wizard-Scout | -3/Research Wizard-Scout | -3/Armory Wizard-Scout | -3/Lab Wizard-Scout | -2/Research Hacker-Scout | -2/Testing Wizard-Scout | -1/Access Wizard-Scout | -1/Command Resources | -11 -10 -10 -10 -9 -8 -8 -8 -8 -6 -6 -6 -6 -6 -6 -5 -5 -5 -5 -5 -5 -5 -4 -4 -4 -4 -4 -4 -3 -3 -3 -2 -2 -1 -1 ----------- Run | Yrd Mat Min Exi Min Mat Sto Rec Scr Fac Was Fac Low Low Zio Pro Fac Was Fac Upp Upp Zhi Pro Fac Ext Cet Arc Hub Res Arm Lab Res Tes Acc Com Matter Collected 4223 | 299 269 153 . 151 969 713 60 35 230 45 56 85 50 . 45 162 40 88 40 . . 210 130 . . 60 76 . . . 160 25 15 57 Remotely . | . . . . . . . . . . . . . . . . . . . . . . . . . . . . . . . . . . . Salvage Created 9241 | 132 722 433 . 115 2176 1972 794 . 302 . 300 97 . . 26 296 . 398 26 . . 159 105 413 . 192 102 . . . 254 39 40 148 Parts 544 | 9 57 36 . 20 122 117 30 . 11 . 17 8 . . 1 20 . 18 2 . . 8 5 20 . 13 3 . . . 16 2 2 7 Haulers Intercepted 17 | . 1 . . . 5 6 . . 1 . 1 . . . . . . 1 . . . . 1 . . . 1 . . . . . . . Recyclers Shooed 13 | . . 1 . . 5 3 3 . . . . . . . . 1 . . . . . . . . . . . . . . . . . . Parts Field Recycled . | . . . . . . . . . . . . . . . . . . . . . . . . . . . . . . . . . . . Retrieved Matter . | . . . . . . . . . . . . . . . . . . . . . . . . . . . . . . . . . . . Parts Self-Destructed 12 | . . . . . . . . . . . . 7 . . 2 . . . . . . 3 . . . . . . . . . . . . Prevented 7 | . . . . . . . . . . . . . . . 2 . . . . . . 5 . . . . . . . . . . . . Kills | -11 -10 -10 -10 -9 -8 -8 -8 -8 -6 -6 -6 -6 -6 -6 -5 -5 -5 -5 -5 -5 -5 -4 -4 -4 -4 -4 -4 -3 -3 -3 -2 -2 -1 -1 ------- Run | Yrd Mat Min Exi Min Mat Sto Rec Scr Fac Was Fac Low Low Zio Pro Fac Was Fac Upp Upp Zhi Pro Fac Ext Cet Arc Hub Res Arm Lab Res Tes Acc Com Combat Hostiles Destroyed 127 | . 15 11 . 11 36 22 6 . 1 . 4 3 . . . 1 . . . . . 4 . 6 . 2 . . . . . . . 5 Melee 18 | . . . . . . . 5 . . . . 3 . . . . . . . . . 2 . 6 . . . . . . . . . 2 Guns 50 | . 3 3 . . 21 22 1 . . . . . . . . . . . . . . . . . . . . . . . . . . . Cannons 9 | . 7 2 . . . . . . . . . . . . . . . . . . . . . . . . . . . . . . . . AOE 48 | . 5 6 . 11 15 . . . 1 . 4 . . . . 1 . . . . . . . . . 2 . . . . . . . 3 Classes Destroyed 20 | 2 7 . . 1 3 1 1 . . . . 1 . . . . . . . . . 3 . . . . . . . . . . . 1 Worker 25 | . 3 1 . 2 4 8 . . . . . . . . . 5 . 2 . . . . . . . . . . . . . . . . Builder 14 | . 1 4 . 1 2 2 2 . . . . . . . . . . . . . . . . . . . . . . . 2 . . . Tunneler 4 | 2 1 1 . . . . . . . . . . . . . . . . . . . . . . . . . . . . . . . . Hauler 17 | . 1 . . . 5 6 . . 1 . 1 . . . . . . 1 . . . . 1 . . . 1 . . . . . . . Recycler 22 | 1 2 2 . . 3 4 6 . . . 1 . . . . . . 1 . . . . . 1 . . . . . . 1 . . . Minesweeper 3 | . . . . . . . . . . . . 1 . . 1 . . . 1 . . . . . . . . . . . . . . . Mechanic 5 | . . . . . 1 . . . 2 . . . . . . 1 . . . . . . . . . . . . . . . 1 . . Operator 12 | . 1 . . . 2 1 . . 1 . 1 . . . . 1 . 4 . . . . 1 . . . . . . . . . . . Drone 4 | . . . . . . . . . . . . . . . . . . . . . . 4 . . . . . . . . . . . . Watcher 20 | . 3 . . . 5 2 . . 1 . 2 . . . . 2 . 2 . . . . . . . . . . . . 2 . 1 . Swarmer 44 | . 6 7 . 8 10 . . . . . 4 3 . . . 1 . . . . . . . 3 . . . . . . . . . 2 Cutter 3 | . . . . . . . . . . . . . . . . . . . . . . . . . . . . . . . . . . 3 Grunt 43 | . 9 4 . 2 17 8 1 . . . . . . . . . . . . . . . . . . 2 . . . . . . . . Brawler 1 | . . . . 1 . . . . . . . . . . . . . . . . . . . . . . . . . . . . . . Duelist 3 | . . . . . 1 1 1 . . . . . . . . . . . . . . . . . . . . . . . . . . . Protector 1 | . . . . . . . . . . . . . . . . . . . . . . 1 . . . . . . . . . . . . Sentry 27 | . . . . . 8 12 3 . 1 . . . . . . . . . . . . . . 3 . . . . . . . . . . Demolisher 1 | . . . . . . . . . . . . . . . . . . . . . . 1 . . . . . . . . . . . . Hunter 1 | . . . . . . 1 . . . . . . . . . . . . . . . . . . . . . . . . . . . . Programmer 1 | . . . . . . . 1 . . . . . . . . . . . . . . . . . . . . . . . . . . . Best Kill Streak 11 | 3 5 11 . 4 7 4 5 . 1 . 4 3 . . 1 4 . 3 1 . . 2 1 2 . 2 1 . . . 3 1 1 3 Combat Bots Only 8 | . 4 8 . 4 7 3 3 . 1 . 4 3 . . . 1 . . . . . 2 . 2 . 2 . . . . . . . 3 Max Kills in Single Turn 6 | 1 2 6 . 4 4 2 1 . 1 . 4 1 . . 1 1 . 1 1 . . 1 1 1 . 1 1 . . . 1 1 1 3 Gunslinging . | . . . . . . . . . . . . . . . . . . . . . . . . . . . . . . . . . . . Exploded 5 | . 2 5 . 4 4 . . . 1 . 4 . . . . 1 . . . . . . . . . 1 . . . . . . . 3 Melee 1 | . . . . . . . 1 . . . . 1 . . . . . . . . . 1 . 1 . . . . . . . . . 1 Uniques/NPCs Destroyed . | . . . . . . . . . . . . . . . . . . . . . . . . . . . . . . . . . . . Combat | -11 -10 -10 -10 -9 -8 -8 -8 -8 -6 -6 -6 -6 -6 -6 -5 -5 -5 -5 -5 -5 -5 -4 -4 -4 -4 -4 -4 -3 -3 -3 -2 -2 -1 -1 -------- Run | Yrd Mat Min Exi Min Mat Sto Rec Scr Fac Was Fac Low Low Zio Pro Fac Was Fac Upp Upp Zhi Pro Fac Ext Cet Arc Hub Res Arm Lab Res Tes Acc Com Hostile Shots Fired 1027 | . 58 27 . 17 174 160 28 . 62 . 33 11 6 23 5 37 1 32 . 5 . 6 30 68 13 . . 13 14 . 13 57 13 121 Missed 406 | . 10 7 . 6 47 39 4 . 45 . 19 3 5 10 2 20 . 16 . 4 . 3 17 31 9 . . 4 8 . 9 26 8 54 Hits 621 | . 48 20 . 11 127 121 24 . 17 . 14 8 1 13 3 17 1 16 . 1 . 3 13 37 4 . . 9 6 . 4 31 5 67 Melee 11 | . . . . . 6 1 2 . . . . . . . . . . . . . . . . . . . . . . . . . . 2 Projectile 610 | . 48 20 . 11 121 120 22 . 17 . 14 8 1 13 3 17 1 16 . 1 . 3 13 37 4 . . 9 6 . 4 31 5 65 AOE 8 | . . . . . . . . . . . . . . . . . . . . . . 8 . . . . . . . . . . . . Critical Strikes 32 | . 1 . . . 6 6 3 . . . . . . 1 . . . . . . . . 1 3 . . . 1 1 . . 2 . 7 Damage Taken 11356 | . 649 235 . 242 2229 1932 441 . 145 . 134 123 16 146 19 277 19 366 . 23 . 427 208 688 104 . . 208 120 . 71 674 115 1745 Core 1966 | . 50 12 . 46 171 179 14 . 49 . 64 42 . 39 . 50 . 185 . . . 4 103 112 32 . . 51 18 . 24 47 . 674 Absorbed by Shields 229 | . . . . . . . . . . . . . . . . . . . . . . . . 20 . . . . . . . 52 . 157 Redirected to Shielding 163 | . . . . . 5 . . . . . . . . . . . . . . . . 55 18 85 . . . . . . . . . . Regen/Repaired (Parts) 800 | . . . . . 118 124 . . . . . . . . . . 26 . . . . . 435 . . . . . . . . . 97 . Core Remaining (%) 73 | 100 . . . 56 . . . 33 . . . . . . 77 . . . . . . 76 . . . . 78 . . 87 . 95 . 57 Volleys Fired 356 | 13 57 24 . 13 123 99 5 . . . 1 . . . . 2 . . . . . 16 . . . 2 . . . . . . . 1 Largest 2 | 2 2 2 . 2 2 2 2 . . . 1 . . . . 1 . . . . . 1 . . . 1 . . . . . . . 1 Hottest 97 | 60 80 80 . 40 97 86 86 . . . 36 . . . . 36 . . . . . 36 . . . 49 . . . . . . . 49 Shots Fired 647 | 26 109 45 . 14 237 184 10 . . . 1 . . . . 2 . . . . . 16 . . . 2 . . . . . . . 1 Gun 527 | 26 52 27 . 2 228 182 10 . . . . . . . . . . . . . . . . . . . . . . . . . . . Cannon 68 | . 52 16 . . . . . . . . . . . . . . . . . . . . . . . . . . . . . . . . Launcher 52 | . 5 2 . 12 9 2 . . . . 1 . . . . 2 . . . . . 16 . . . 2 . . . . . . . 1 Special . | . . . . . . . . . . . . . . . . . . . . . . . . . . . . . . . . . . . Kinetic 328 | 13 52 27 . 2 143 86 5 . . . . . . . . . . . . . . . . . . . . . . . . . . . Thermal 260 | 13 52 16 . . 85 89 5 . . . . . . . . . . . . . . . . . . . . . . . . . . . Explosive 23 | . 5 2 . 12 1 . . . . . . . . . . . . . . . . . . . . 2 . . . . . . . 1 Electromagnetic 36 | . . . . . 8 9 . . . . 1 . . . . 2 . . . . . 16 . . . . . . . . . . . . Robot Hit Streak 14 | 3 14 11 . 4 9 13 6 . . . . . . . . . . . . . . . . . . . . . . . . . . . Robot Miss Streak 5 | 3 3 3 . 1 3 5 1 . . . . . . . . 1 . . . . . 2 . . . . . . . . . . . . Penetration Max . | . . . . . . . . . . . . . . . . . . . . . . . . . . . . . . . . . . . Secondary Targets 5 | . . . . . 4 1 . . . . . . . . . . . . . . . . . . . . . . . . . . . . Max Gunslinging Chain 1 | . . . . . 1 1 . . . . . . . . . . . . . . . . . . . . . . . . . . . . Shots Hit Robots 599 | 14 67 27 . 6 156 133 76 . 13 . 9 8 . 1 1 12 2 13 3 . . 8 2 22 . 6 1 2 3 . 5 5 1 3 Core Hits 323 | 4 28 26 . 18 95 61 11 . 7 . 8 4 . . . 10 . 8 2 . . 10 4 8 . 7 1 . . . 3 1 1 6 Critical Kills . | . . . . . . . . . . . . . . . . . . . . . . . . . . . . . . . . . . . Critical Parts Destroyed 1 | . . . . . . 1 . . . . . . . . . . . . . . . . . . . . . . . . . . . . Critical Strikes 21 | . . . . . 5 6 2 . 2 . . 1 . . . . . 1 . . . . . 2 . . . . . . . 1 . 1 Burn 11 | . . . . . 5 5 1 . . . . . . . . . . . . . . . . . . . . . . . . . . . Destroy 1 | . . . . . . 1 . . . . . . . . . . . . . . . . . . . . . . . . . . . . Sever 5 | . . . . . . . 1 . 2 . . 1 . . . . . 1 . . . . . . . . . . . . . . . . Impale 4 | . . . . . . . . . . . . . . . . . . . . . . . . 2 . . . . . . . 1 . 1 Melee Attacks 604 | . . . . . . 24 74 . 67 1 67 14 4 1 4 80 2 72 5 9 . 28 18 34 4 6 1 6 13 4 17 32 12 5 Impact 1 | . . . . . . . . . . . . . . . . . . . . . . . 1 . . . . . . . . . . . Slashing 396 | . . . . . . 20 30 . 65 1 67 14 4 . 4 80 1 72 4 9 . 23 . . . . . . . . . . . 2 Piercing 133 | . . . . . . . . . . . . . . . . . . . . . . . 16 25 4 5 1 6 10 4 17 30 12 3 Sneak Attacks 121 | . . . . . . 11 51 . 4 . 3 2 . 1 1 7 2 8 1 . . 6 2 10 . 1 1 1 3 . 3 3 . . Combat Hostiles 3 | . . . . . . . 1 . . . . 1 . . . . . . . . . 1 . . . . . . . . . . . . Follow-up Attacks 1 | . . . . . . . . . . . . . . . . . . . . . . . . . . . . . . . . . . 1 Damage Inflicted 20965 | 162 1394 690 . 864 3794 3075 1430 . 898 . 1019 409 . . 103 964 89 959 176 . . 622 769 781 . 1225 142 154 . . 605 195 57 389 Guns 5693 | 162 389 150 . 16 2588 2243 145 . . . . . . . . . . . . . . . . . . . . . . . . . . . Cannons 874 | . 682 192 . . . . . . . . . . . . . . . . . . . . . . . . . . . . . . . . Explosions 5386 | . 267 292 . 803 1037 111 . . 220 . 377 . . . . 127 . . . . . 370 669 . . 735 . . . . 136 . . 242 Melee 8522 | . . . . . . 574 1272 . 678 . 642 409 . . 100 837 89 959 176 . . 252 100 780 . 490 142 154 . . 469 195 57 147 Ramming 490 | . 56 56 . 45 169 147 13 . . . . . . . 3 . . . . . . . . 1 . . . . . . . . . . Kinetic 3059 | 80 389 150 . 16 1393 946 85 . . . . . . . . . . . . . . . . . . . . . . . . . . . Thermal 4285 | 82 682 192 . . 1417 1160 60 . 111 . 377 . . . . . . . . . . . 204 . . . . . . . . . . . Explosive 3275 | . 267 292 . 803 226 . . . 109 . . . . . . . . . . . . . 465 . . 735 . . . . 136 . . 242 Electromagnetic 1334 | . . . . . 589 248 . . . . . . . . . 127 . . . . . 370 . . . . . . . . . . . . Impact . | . . . . . . . . . . . . . . . . . . . . . . . . . . . . . . . . . . . Slashing 5988 | . . . . . . 574 1272 . 678 . 642 409 . . 100 837 89 959 176 . . 252 . . . . . . . . . . . . Piercing 2534 | . . . . . . . . . . . . . . . . . . . . . . . 100 780 . 490 142 154 . . 469 195 57 147 Highest Corruption 2 | . . . . . . . . . 1 1 1 . . . . 1 . 2 . . . 1 1 1 1 1 . . . . . 1 . . Average Corruption 1 | . . . . . . . . . 1 1 1 . . . . 1 . 1 . . . 1 1 1 1 1 . . . . . 1 . . Corruption Purged 5 | . . . . . . . . . . . 1 . . . . 1 . 2 . . . . . . . 1 . . . . . . . . Corruption Blocked 1 | . . . . . . . . . . . . . . . . . . . . . . . . . . . . . . . . . 1 . Effects 18 | . . . . . . . . . 1 . 7 . . . . 4 . . . . . 1 1 3 . . . . . . . 1 . . Message Errors 5 | . . . . . . . . . . . 2 . . . . . . . . . . 1 . 2 . . . . . . . . . . Matter Fused 5 | . . . . . . . . . 1 . 2 . . . . 1 . . . . . . 1 . . . . . . . . . . . Heat Flow Errors 4 | . . . . . . . . . . . 2 . . . . 1 . . . . . . . 1 . . . . . . . . . . Energy Discharges 2 | . . . . . . . . . . . . . . . . 1 . . . . . . . . . . . . . . . 1 . . Data Loss (minor) 1 | . . . . . . . . . . . . . . . . 1 . . . . . . . . . . . . . . . . . . Data Loss (major) 1 | . . . . . . . . . . . 1 . . . . . . . . . . . . . . . . . . . . . . . Overload Shots . | . . . . . . . . . . . . . . . . . . . . . . . . . . . . . . . . . . . Overflow Damage 1893 | . 45 16 . 11 8 189 184 . 119 . 148 82 . . 60 84 39 125 60 . . 109 103 12 . 181 . 76 . . 242 . . . Projectiles 22 | . 22 . . . . . . . . . . . . . . . . . . . . . . . . . . . . . . . . . Explosions 242 | . 23 16 . 11 8 . . . 49 . 58 . . . . . . . . . . 28 38 . . 11 . . . . . . . . Melee 1629 | . . . . . . 189 184 . 70 . 90 82 . . 60 84 39 125 60 . . 81 65 12 . 170 . 76 . . 242 . . . Knockbacks 4 | . . 1 . 1 . 2 . . . . . . . . . . . . . . . . . . . . . . . . . . . . Impact 4 | . . 1 . 1 . 2 . . . . . . . . . . . . . . . . . . . . . . . . . . . . Kinetic . | . . . . . . . . . . . . . . . . . . . . . . . . . . . . . . . . . . . Secondary . | . . . . . . . . . . . . . . . . . . . . . . . . . . . . . . . . . . . Self-Inflicted Damage 752 | . 51 41 . 149 354 18 . . . . . . . . 1 10 . . . . . 42 . . . . . . . . . . . 86 Shots 23 | . 3 1 . 4 10 1 . . . . . . . . . 1 . . . . . 2 . . . . . . . . . . . 1 Rammed 68 | . 11 9 . 6 23 15 2 . . . . . . . 1 . . . . . . . . 1 . . . . . . . . . . Targets Rammed 79 | . 12 12 . 8 24 18 3 . . . . . . . 1 . . . . . . . . 1 . . . . . . . . . . Kicked . | . . . . . . . . . . . . . . . . . . . . . . . . . . . . . . . . . . . Crushed 11 | . 1 3 . 2 1 3 1 . . . . . . . . . . . . . . . . . . . . . . . . . . . Highest Temperature 414 | . 315 205 . . 254 414 123 . 125 142 263 20 24 310 4 163 . 13 . 6 . . . 221 . . . . . . . . . . Average Temperature 73 | . 97 68 . . 65 127 48 . 26 49 32 10 8 145 2 50 . 6 . 6 . . . 98 . . . . . . . . . . Received Heat Transfer 2795 | . 276 57 . 24 774 903 216 . 42 . 27 . . 27 . 18 9 99 . 12 . . 39 155 18 . . 18 9 . . 45 . 27 Effects 9 | . . . . . . 5 . . . . . . . 4 . . . . . . . . . . . . . . . . . . . . Energy Bleed 1 | . . . . . . . . . . . . . . 1 . . . . . . . . . . . . . . . . . . . . Interference 8 | . . . . . . 5 . . . . . . . 3 . . . . . . . . . . . . . . . . . . . . Siege Activations . | . . . . . . . . . . . . . . . . . . . . . . . . . . . . . . . . . . . Martial Activations . | . . . . . . . . . . . . . . . . . . . . . . . . . . . . . . . . . . . Shielding Activations . | . . . . . . . . . . . . . . . . . . . . . . . . . . . . . . . . . . . Robots Disrupted . | . . . . . . . . . . . . . . . . . . . . . . . . . . . . . . . . . . . Combat Hostiles . | . . . . . . . . . . . . . . . . . . . . . . . . . . . . . . . . . . . Robots Corrupted 4 | . . . . 1 . 1 . . . . . . . . . . . . . . . 2 . . . . . . . . . . . . Combat Hostiles 2 | . . . . . . . . . . . . . . . . . . . . . . 2 . . . . . . . . . . . . Parts Fried 10 | . . . . 1 . 4 . . . . . . . . . . . . . . . 5 . . . . . . . . . . . . Impact Corruptions 3 | . . . . 1 . 2 . . . . . . . . . . . . . . . . . . . . . . . . . . . . Robots Melted . | . . . . . . . . . . . . . . . . . . . . . . . . . . . . . . . . . . . Combat Hostiles . | . . . . . . . . . . . . . . . . . . . . . . . . . . . . . . . . . . . Parts Melted 10 | . . . . . 5 3 1 . . . . . . . . . . . . . . . . . . . . . . . . . . 1 Heat Transferred 8128 | 200 1443 407 . . 2877 2516 185 . 50 . 300 . . . . . . . . . . . 150 . . . . . . . . . . . Parts Sabotaged . | . . . . . . . . . . . . . . . . . . . . . . . . . . . . . . . . . . . Parts Stolen . | . . . . . . . . . . . . . . . . . . . . . . . . . . . . . . . . . . . Parts Stripped . | . . . . . . . . . . . . . . . . . . . . . . . . . . . . . . . . . . . Power Chain Reactions 7 | . . . . . 6 . . . . . . . . . . 1 . . . . . . . . . . . . . . . . . . Alert | -11 -10 -10 -10 -9 -8 -8 -8 -8 -6 -6 -6 -6 -6 -6 -5 -5 -5 -5 -5 -5 -5 -4 -4 -4 -4 -4 -4 -3 -3 -3 -2 -2 -1 -1 ------- Run | Yrd Mat Min Exi Min Mat Sto Rec Scr Fac Was Fac Low Low Zio Pro Fac Was Fac Upp Upp Zhi Pro Fac Ext Cet Arc Hub Res Arm Lab Res Tes Acc Com Maximum Alert Level 4 | . . 1 . . 2 1 . . 1 . 2 . . . . 1 . 4 . . . . 3 2 1 1 . . . . . . 1 1 Low Security (%) 72 | 100 100 95 . 100 38 91 100 . 54 100 72 . . . . 51 100 9 . . . . 16 . 31 84 100 100 100 . 100 100 54 62 Level 1 14 | . . 4 . . 13 8 . . 45 . 12 . . . . 48 . 10 . . . . 36 82 68 15 . . . . . . 45 37 Level 2 9 | . . . . . 47 . . . . . 15 . . . . . . 9 . . . . 46 17 . . . . . . . . . . Level 3 2 | . . . . . . . . . . . . . . . . . . 49 . . . . . . . . . . . . . . . . Level 4 . | . . . . . . . . . . . . . . . . . . 20 . . . . . . . . . . . . . . . . Level 5 . | . . . . . . . . . . . . . . . . . . . . . . . . . . . . . . . . . . . High Security . | . . . . . . . . . . . . . . . . . . . . . . . . . . . . . . . . . . . Max Security . | . . . . . . . . . . . . . . . . . . . . . . . . . . . . . . . . . . . Peak Influence 1297 | 10 150 210 . 156 583 238 75 . 333 154 472 . . . . 364 99 1297 . . . . 726 468 240 253 132 118 73 . 164 126 240 261 Initial 355 | . . 42 . . . 236 52 . . 112 26 . . . . . 99 6 . . . . 161 355 230 96 81 69 56 . . 86 44 84 Average 178 | 1 51 86 . 76 304 142 17 . 157 97 161 . . . . 161 56 763 . . . . 404 363 208 124 96 81 43 . 37 96 180 141 Influence Increases 12237 | 15 470 419 . 404 1313 825 480 . 733 86 954 90 45 . 5 809 . 2046 5 75 . 200 1163 481 60 207 61 109 127 . 236 238 289 292 Destroy 0b10 Robot/C 3440 | . 300 260 . 220 740 440 140 . 20 . 220 60 . . . 20 . 400 . . . 60 60 260 . 100 . . . . . 20 20 100 Destroy 0b10 Robot/NC 705 | 15 60 45 . 15 110 115 40 . 30 . 25 5 . . 5 45 . 80 5 . . 25 15 5 . 20 5 . . . 25 5 10 . Destroy Leader 714 | . 68 50 . 30 190 156 . . 16 . 36 10 . . . 4 . 94 . . . . 12 20 . . 2 . . . 4 . 12 10 Allied During Kill 464 | . . 14 . . 8 . 40 . 1 . 8 . . . . . . 243 . . . 10 11 83 . 37 . . . . . 5 4 . Trap Triggered on 0b10 20 | . . . . . . . . . . . . . . . . . . . . . . . 20 . . . . . . . . . . . Successful Hack 851 | . 12 . . . 33 12 38 . 110 . 62 . . . . 117 . 121 . . . . 103 10 . . 24 15 53 . . 28 99 14 Select Force Hacks 390 | . . . . . . . 180 . . . 30 . . . . 60 . 30 . . . . 60 . . . . . . . 30 . . . Disable Machine 795 | . . 30 . 45 75 45 . . 45 . 90 . . . . 30 . 165 . . . . 105 15 . . . 15 45 . 30 30 15 15 Destroy Structure 1573 | . 30 20 . 94 82 12 42 . 106 56 93 . . . . 128 . 298 . . . . 282 28 . 50 . 4 14 . 87 60 54 33 Advance Influence 150 | . . . . . . . . . . . . . . . . . . . . . . . 150 . . . . . . . . . . . Partial Spotted 675 | . . . . . . . . . 105 30 165 . . . . 75 . 120 . . . . 60 15 . . 30 . 15 . 30 30 . . Lose Combat Pursuer 2460 | . . . . . 75 45 . . 300 . 225 15 45 . . 330 . 495 . 75 . 105 285 45 60 . . 75 . . 30 60 75 120 Influence Decreases 12101 | 15 360 476 53 404 752 1252 614 . 411 370 520 315 188 104 5 524 276 773 575 206 581 182 455 795 232 214 162 133 182 53 82 318 230 289 Entered New Map 3629 | . . 68 53 . . 325 82 . . 210 12 175 48 104 . . 186 3 475 136 581 . 7 371 182 144 152 63 52 53 . 68 30 49 Time Decay 6232 | 15 350 388 . 374 562 717 429 . 304 100 318 140 140 . 5 344 90 350 100 70 . 172 278 214 40 30 10 60 120 . 72 170 190 80 Search Patrol Dispatched 150 | . . . . . . . . . . . . . . . . . . . . . . . 150 . . . . . . . . . . . Lost Part 620 | . 10 20 . 10 150 60 . . 20 . . . . . . 10 . 40 . . . 10 . 50 10 . . . 10 . . 60 10 150 Lost Ally 1170 | . . . . 20 40 . 103 . 87 60 190 . . . . 20 . 380 . . . . 20 160 . 40 . 10 . . 10 20 . 10 Purge Threat 300 | . . . . . . 150 . . . . . . . . . 150 . . . . . . . . . . . . . . . . . . Squads Dispatched 113 | . 3 . . . 3 1 . . 16 . 17 . . . . 18 . 29 . . . . 13 2 . . . 2 1 . 3 2 2 1 Investigation 70 | . 1 . . . 1 . . . 12 . 13 . . . . 15 . 14 . . . . 7 1 . . . 1 1 . 2 1 1 . Extermination 17 | . . . . . . . . . 2 . 3 . . . . 2 . 3 . . . . 3 . . . . 1 . . 1 1 1 . Reinforcement 16 | . 2 . . . 1 . . . 2 . . . . . . 1 . 5 . . . . 3 1 . . . . . . . . . 1 Assault 4 | . . . . . . . . . . . 1 . . . . . . 3 . . . . . . . . . . . . . . . . Garrison 6 | . . . . . 1 1 . . . . . . . . . . . 4 . . . . . . . . . . . . . . . . Intercept . | . . . . . . . . . . . . . . . . . . . . . . . . . . . . . . . . . . . Searches Triggered 1 | . . . . . . . . . . . . . . . . . . . . . . . 1 . . . . . . . . . . . Construction Impeded 5 | . . . . . 1 . . . . . . . . . . . . 2 . . . . 1 1 . . . . . . . . . . Haulers Reinforced 3 | . . . . . . . . . 1 . . . . . . . . 1 . . . . 1 . . . . . . . . . . . Active Scanning Responses . | . . . . . . . . . . . . . . . . . . . . . . . . . . . . . . . . . . . Cargo Convoy Interrupts 1 | . . . . . . . . . 1 . . . . . . . . . . . . . . . . . . . . . . . . . Stealth | -11 -10 -10 -10 -9 -8 -8 -8 -8 -6 -6 -6 -6 -6 -6 -5 -5 -5 -5 -5 -5 -5 -4 -4 -4 -4 -4 -4 -3 -3 -3 -2 -2 -1 -1 --------- Run | Yrd Mat Min Exi Min Mat Sto Rec Scr Fac Was Fac Low Low Zio Pro Fac Was Fac Upp Upp Zhi Pro Fac Ext Cet Arc Hub Res Arm Lab Res Tes Acc Com Distress Signals 60 | . 2 . . . 3 3 . . 2 . 3 . . . . 3 . 2 . . . 34 1 . . . . 1 . . 3 . 1 2 Communications Jammed . | . . . . . . . . . . . . . . . . . . . . . . . . . . . . . . . . . . . Distress Signals . | . . . . . . . . . . . . . . . . . . . . . . . . . . . . . . . . . . . Times Spotted 477 | . 23 11 . 12 53 35 8 . 21 6 19 3 8 27 7 33 1 37 . 5 . 12 25 27 5 10 1 15 6 . 8 20 10 29 Peak Tracking Total 27 | . 4 5 . 4 9 5 4 . 6 3 8 3 6 27 7 8 . 12 . 5 . 2 11 11 5 10 2 13 5 . 5 10 7 21 Tactical Retreats 84 | . . . . . 4 3 . . 7 . 7 1 5 4 . 11 1 7 . 1 . 6 12 3 1 . . 2 . . 1 2 2 4 Traps | -11 -10 -10 -10 -9 -8 -8 -8 -8 -6 -6 -6 -6 -6 -6 -5 -5 -5 -5 -5 -5 -5 -4 -4 -4 -4 -4 -4 -3 -3 -3 -2 -2 -1 -1 ------- Run | Yrd Mat Min Exi Min Mat Sto Rec Scr Fac Was Fac Low Low Zio Pro Fac Was Fac Upp Upp Zhi Pro Fac Ext Cet Arc Hub Res Arm Lab Res Tes Acc Com Traps Triggered 27 | . 4 . . . 2 3 . . 1 . . . . . . 3 . 6 . . . 2 . . . . . . . . . 1 . 5 Indirectly 3 | . . . . . . 2 . . . . . . . . . . . . . . . 1 . . . . . . . . . . . . Trap Hack Attempts 22 | . . . . . . . . . 4 . . . . . . . . . . . . . 18 . . . . . . . . . . . Triggered . | . . . . . . . . . . . . . . . . . . . . . . . . . . . . . . . . . . . Disarmed 9 | . . . . . . . . . . . . . . . . . . 5 . . . . 2 . . . . . . . . . . 2 Reprogrammed 2 | . . . . . . . . . . . . . . . . . . . . . . . 2 . . . . . . . . . . . Reused 2 | . . . . . . . . . . . . . . . . . . . . . . . 2 . . . . . . . . . . . Traps Extracted . | . . . . . . . . . . . . . . . . . . . . . . . . . . . . . . . . . . . Installed . | . . . . . . . . . . . . . . . . . . . . . . . . . . . . . . . . . . . Triggered 2 | . . . . . . . . . . . . . . . . . . . . . . . 2 . . . . . . . . . . . Objects Rigged 19 | . . . . . 1 . . . 4 . . . . . . 2 . 4 . . . . 6 . . . . . . . 2 . . . Exploded 7 | . . . . . 1 . . . 2 . . . . . . . . . . . . . 3 . . . . . . . 1 . . . Machines | -11 -10 -10 -10 -9 -8 -8 -8 -8 -6 -6 -6 -6 -6 -6 -5 -5 -5 -5 -5 -5 -5 -4 -4 -4 -4 -4 -4 -3 -3 -3 -2 -2 -1 -1 ---------- Run | Yrd Mat Min Exi Min Mat Sto Rec Scr Fac Was Fac Low Low Zio Pro Fac Was Fac Upp Upp Zhi Pro Fac Ext Cet Arc Hub Res Arm Lab Res Tes Acc Com Machines Disabled 56 | . . 2 . 3 5 3 . . 3 . 6 . . . . 2 . 11 . . . . 7 1 1 . . 1 3 2 2 2 1 1 Max in Single Turn 6 | . . 1 . 1 2 1 . . 1 . 6 . . . . 2 . 1 . . . . 2 1 1 . . 1 1 1 1 1 . 1 Garrison Access 12 | . . . . . 1 1 . . 1 . 4 . . . . 1 . 2 . . . . . . . . . 1 . . . . 1 . Machines Repaired . | . . . . . . . . . . . . . . . . . . . . . . . . . . . . . . . . . . . Machines Dismantled . | . . . . . . . . . . . . . . . . . . . . . . . . . . . . . . . . . . . Machines Sabotaged . | . . . . . . . . . . . . . . . . . . . . . . . . . . . . . . . . . . . Overloaded Fab Kills . | . . . . . . . . . . . . . . . . . . . . . . . . . . . . . . . . . . . Hacking | -11 -10 -10 -10 -9 -8 -8 -8 -8 -6 -6 -6 -6 -6 -6 -5 -5 -5 -5 -5 -5 -5 -4 -4 -4 -4 -4 -4 -3 -3 -3 -2 -2 -1 -1 --------- Run | Yrd Mat Min Exi Min Mat Sto Rec Scr Fac Was Fac Low Low Zio Pro Fac Was Fac Upp Upp Zhi Pro Fac Ext Cet Arc Hub Res Arm Lab Res Tes Acc Com Machines Accessed 253 | . 3 . . . 14 17 12 4 34 . 33 1 . . 1 29 . 30 1 . 6 . 24 6 2 . 2 5 4 2 5 3 11 4 Terminals 132 | . 2 . . . 9 12 6 . 18 . 15 . . . 1 11 . 14 . . . . 13 6 2 . 2 2 3 . 2 2 8 4 Fabricators 22 | . . . . . . . . . 5 . 3 . . . . 5 . 5 . . . . 3 . . . . . . . . 1 . . Repair Stations 8 | . . . . . 1 2 . . . . 2 . . . . 1 . . . . . . 1 . . . . . . . . . 1 . Recycling Units 47 | . 1 . . . 2 2 6 . 7 . 7 . . . . 8 . 6 . . . . 4 . . . . 1 1 . 1 . 1 . Scanalyzers 16 | . . . . . 1 . . . 2 . 2 . . . . 3 . 2 . . . . 3 . . . . 1 . . 2 . . . Garrison Access 14 | . . . . . 1 1 . . 2 . 4 . . . . 1 . 3 . . . . . . . . . 1 . . . . 1 . Total Hacks 898 | . 16 . . . 52 50 36 28 102 . 92 5 . . 1 137 . 115 5 . 19 . 83 13 5 . 8 14 17 19 20 10 35 16 Successful 532 | . 9 . . . 25 38 26 28 60 . 37 5 . . 1 57 . 58 5 . 19 . 54 5 1 . 6 9 13 19 17 4 23 13 Failed 365 | . 7 . . . 27 12 9 . 42 . 55 . . . . 80 . 57 . . . . 29 8 4 . 2 5 4 . 3 6 12 3 Catastrophic 59 | . 2 . . . 4 1 1 . 5 . 11 . . . . 13 . 11 . . . . 6 1 2 . . . 1 . . 1 . . Database Lockouts 1 | . . . . . . . 1 . . . . . . . . . . . . . . . . . . . . . . . . . . . Manual 409 | . 12 . . . 36 24 24 . 51 . 47 . . . . 79 . 65 . . . . 37 . 1 . 3 5 4 . 8 6 6 1 Terminals 537 | . 9 . . . 38 32 27 . 61 . 51 . . . 1 69 . 80 . . . . 59 13 5 . 8 8 15 . 11 8 26 16 Fabricators 52 | . . . . . . . . . 12 . 7 . . . . 16 . 8 . . . . 7 . . . . . . . . 2 . . Repair Stations 23 | . . . . . 2 5 . . . . 4 . . . . 6 . . . . . . 3 . . . . . . . . . 3 . Recycling Units 128 | . 7 . . . 9 12 9 . 17 . 16 . . . . 29 . 10 . . . . 9 . . . . 2 2 . 1 . 5 . Scanalyzers 53 | . . . . . 2 . . . 7 . 6 . . . . 14 . 10 . . . . 5 . . . . 1 . . 8 . . . Garrison Access 29 | . . . . . 1 1 . . 5 . 8 . . . . 3 . 7 . . . . . . . . . 3 . . . . 1 . Terminal Hacks 237 | . 1 . . . 4 15 7 28 18 . 5 5 . . 1 14 . 20 5 . 19 . 19 5 1 . 4 3 8 19 3 4 16 13 Record 70 | . . . . . . . . 28 2 . 1 5 . . 1 . . 1 5 . 7 . . . 1 . . . . 19 . . . . Part Schematic 21 | . 1 . . . 1 . 5 . 3 . 1 . . . . 1 . 4 . . 4 . 1 . . . . . . . . . . . Robot Schematic 2 | . . . . . . . . . . . . . . . . 1 . . . . . . 1 . . . . . . . . . . . Robot Analysis 6 | . . . . . . . . . . . . . . . . . . 1 . . 4 . . . . . . . 1 . . . . . Prototype ID Bank 30 | . . . . . . 2 1 . 3 . 1 . . . . 3 . 3 . . 4 . 6 . . . . . 1 . 1 . 2 3 Open Door 13 | . . . . . . 5 . . . . . . . . . . . . . . . . . 5 . . . . . . . . 3 . Level Access Points 4 | . . . . . . . . . . . . . . . . . . . . . . . . . . . 1 . 1 . . . 1 1 Branch Access Points 9 | . . . . . 1 . . . 1 . . . . . . 1 . 1 . . . . 1 . . . . 1 1 . . 1 1 . Machine Index 4 | . . . . . . . . . 1 . . . . . . . . . . . . . . . . . . . 1 . . . 1 1 Terminal Index 2 | . . . . . . . . . . . . . . . . . . . . . . . . . . . . . . . . . 1 1 Recycling Unit Index 4 | . . . . . . . . . . . 1 . . . . 1 . 1 . . . . . . . . 1 . . . . . . . Garrison Index 2 | . . . . . . . . . . . . . . . . . . . . . . . . . . . . . . . . . 1 1 Alert Level 10 | . . . . . . 2 1 . 1 . 1 . . . . 1 . 1 . . . . . . . . . 1 1 . 1 . . . Unreport Threat 2 | . . . . . . 1 . . . . . . . . . 1 . . . . . . . . . . . . . . . . . . Locate Traps 17 | . . . . . 1 4 . . 1 . . . . . . 2 . 2 . . . . 2 . . . . . 1 . 1 1 . 2 Disarm Traps 3 | . . . . . . . . . . . . . . . . . . 1 . . . . . . . . . . . . . . . 2 Surveillance Status 1 | . . . . . . . . . 1 . . . . . . . . . . . . . . . . . . . . . . . . . Patrol Status 1 | . . . . . . . . . . . . . . . . . . . . . . . . . . . . . . . . . . 1 Transport Status 2 | . . . . . . . . . 1 . . . . . . . . . . . . . 1 . . . . . . . . . . . Extermination Status 1 | . . . . . . . . . . . . . . . . . . . . . . . 1 . . . . . . . . . . . Recall Investigation 1 | . . . . . . . . . . . . . . . . 1 . . . . . . . . . . . . . . . . . . Recall Extermination 2 | . . . . . . . . . . . . . . . . . . . . . . . 2 . . . . . . . . . . . Recall Reinforcements 1 | . . . . . . . . . . . . . . . . . . 1 . . . . . . . . . . . . . . . . Hauler Manifests 2 | . . . . . . . . . . . . . . . . . . . . . . . 1 . . . . . . . . . 1 . Registered Components 9 | . . . . . . 1 . . 1 . . . . . . 1 . 1 . . . . 1 . . . 1 1 . . . 1 1 . Registered Prototypes 6 | . . . . . 1 . . . 1 . . . . . . . . 1 . . . . 1 . . . . . . . . . 1 1 Zone Layout 11 | . . . . . . . . . 2 . . . . . . 1 . 2 . . . . 1 . . . 1 . 1 . . . 3 . Protovariant Controls 1 | . . . . . . . . . . . . . . . . . . . . . . . . . . . . . . . . 1 . . Fabricator Hacks 6 | . . . . . . . . . 2 . . . . . . 3 . . . . . . 1 . . . . . . . . . . . Network Status 2 | . . . . . . . . . 1 . . . . . . . . . . . . . 1 . . . . . . . . . . . Load Schematic 1 | . . . . . . . . . . . . . . . . 1 . . . . . . . . . . . . . . . . . . Build 3 | . . . . . . . . . 1 . . . . . . 2 . . . . . . . . . . . . . . . . . . Repair Station Hacks 12 | . . . . . 2 4 . . . . 1 . . . . 1 . . . . . . 2 . . . . . . . . . 2 . Scan Component 7 | . . . . . 1 2 . . . . 1 . . . . 1 . . . . . . 1 . . . . . . . . . 1 . Repair 5 | . . . . . 1 2 . . . . . . . . . . . . . . . . 1 . . . . . . . . . 1 . Recycling Unit Hacks 28 | . 3 . . . . 3 2 . 6 . 3 . . . . 3 . 2 . . . . 3 . . . . 1 1 . . . 1 . Process 1 | . 1 . . . . . . . . . . . . . . . . . . . . . . . . . . . . . . . . . Report Inventory 1 | . 1 . . . . . . . . . . . . . . . . . . . . . . . . . . . . . . . . . Retrieve Components 26 | . 1 . . . . 3 2 . 6 . 3 . . . . 3 . 2 . . . . 3 . . . . 1 1 . . . 1 . Scanalyzer 29 | . . . . . 2 . . . 5 . 3 . . . . 4 . 4 . . . . 3 . . . . 1 . . 7 . . . Insert Component 17 | . . . . . 1 . . . 3 . 2 . . . . 2 . 2 . . . . 2 . . . . 1 . . 4 . . . Analyze 12 | . . . . . 1 . . . 2 . 1 . . . . 2 . 2 . . . . 1 . . . . . . . 3 . . . Garrison Access Hacks 12 | . . . . . 1 1 . . 1 . 4 . . . . 1 . 2 . . . . . . . . . 1 . . . . 1 . Seal Access 12 | . . . . . 1 1 . . 1 . 4 . . . . 1 . 2 . . . . . . . . . 1 . . . . 1 . Unauthorized Hacks 207 | . 5 . . . 16 15 16 . 28 . 21 . . . . 31 . 30 . . . . 26 . . . 2 3 4 . 7 . 3 . Terminals 123 | . 3 . . . 12 9 10 . 18 . 10 . . . . 17 . 15 . . . . 15 . . . 2 2 3 . 5 . 2 . Track 12 | . . . . . . . . . 2 . 2 . . . . 1 . 2 . . . . 3 . . . . . . . 1 . 1 . Assimilate 13 | . . . . . . . . . 3 . 2 . . . . 3 . 1 . . . . 1 . . . . 1 1 . . . 1 . Botnet 31 | . 1 . . . 3 3 4 . 5 . 2 . . . . 4 . 4 . . . . 3 . . . 1 . . . 1 . . . Detonate 8 | . . . . . 1 . . . 1 . . . . . . 1 . 2 . . . . 1 . . . . . 1 . 1 . . . Operators 8 | . 1 . . . 1 1 . . 1 . . . . . . 1 . 1 . . . . 1 . . . . . . . 1 . . . Skim 50 | . 1 . . . 7 5 5 . 6 . 4 . . . . 7 . 5 . . . . 6 . . . 1 1 1 . 1 . . . Search 1 | . . . . . . . 1 . . . . . . . . . . . . . . . . . . . . . . . . . . . Fabricators 27 | . . . . . . . . . 4 . 4 . . . . 6 . 8 . . . . 5 . . . . . . . . . . . Report 6 | . . . . . . . . . 1 . 1 . . . . 1 . 2 . . . . 1 . . . . . . . . . . . Liberate 16 | . . . . . . . . . 2 . 2 . . . . 4 . 5 . . . . 3 . . . . . . . . . . . Haulers 5 | . . . . . . . . . 1 . 1 . . . . 1 . 1 . . . . 1 . . . . . . . . . . . Repair Stations . | . . . . . . . . . . . . . . . . . . . . . . . . . . . . . . . . . . . Recycling Units 50 | . 2 . . . 4 6 6 . 6 . 6 . . . . 6 . 6 . . . . 4 . . . . 1 1 . 1 . 1 . Monitor 2 | . . . . . 1 1 . . . . . . . . . . . . . . . . . . . . . . . . . . . . Reject 4 | . 1 . . . 1 2 . . . . . . . . . . . . . . . . . . . . . . . . . . . . Recyclers 3 | . 1 . . . 1 1 . . . . . . . . . . . . . . . . . . . . . . . . . . . . Mask 3 | . . . . . 1 2 . . . . . . . . . . . . . . . . . . . . . . . . . . . . Tunnel 6 | . . . . . . . 6 . . . . . . . . . . . . . . . . . . . . . . . . . . . Fedlink 31 | . . . . . . . . . 6 . 6 . . . . 6 . 6 . . . . 4 . . . . 1 1 . 1 . . . Scraphulk 1 | . . . . . . . . . . . . . . . . . . . . . . . . . . . . . . . . . 1 . Scanalyzers 7 | . . . . . . . . . . . 1 . . . . 2 . 1 . . . . 2 . . . . . . . 1 . . . Extract 7 | . . . . . . . . . . . 1 . . . . 2 . 1 . . . . 2 . . . . . . . 1 . . . Garrison Access . | . . . . . . . . . . . . . . . . . . . . . . . . . . . . . . . . . . . Data Cores Recovered 6 | . . . . . 1 1 . . . . 1 . . . . 1 . 2 . . . . . . . . . . . . . . . . Used 1 | . . . . . . . . . . . . . . . . . . 1 . . . . . . . . . . . . . . . . Hacking Detections 155 | . 3 . . . 11 6 4 . 25 . 24 . . . 1 22 . 17 . . . . 16 3 1 . 2 2 3 . 1 3 7 4 Full Trace Events 28 | . 1 . . . 1 . 1 . 6 . 6 . . . . 6 . 4 . . . . 1 1 . . . . . . . 1 . . Feedback Events 4 | . . . . . . . . . 1 . . . . . . 1 . 1 . . . . . . . . . . . . . 1 . . Corruption 2 | . . . . . . . . . 1 . . . . . . 1 . . . . . . . . . . . . . . . . . . Hackware Fried 2 | . . . . . . . . . . . . . . . . . . 1 . . . . . . . . . . . . . 1 . . Feedback Blocked 2 | . . . . . . . . . . . . . . . . . . 1 . . . . . . . . . . . . . 1 . . Robot Schematics Acquired 2 | . . . . . . . . . . . . . . . . 1 . . . . . . 1 . . . . . . . . . . . Robots Built . | . . . . . . . . . . . . . . . . . . . . . . . . . . . . . . . . . . . Authchips . | . . . . . . . . . . . . . . . . . . . . . . . . . . . . . . . . . . . Time . | . . . . . . . . . . . . . . . . . . . . . . . . . . . . . . . . . . . Total Robot Build Rating . | . . . . . . . . . . . . . . . . . . . . . . . . . . . . . . . . . . . Part Schematics Acquired 52 | . 1 . . . 2 . 4 . 5 . 4 . . . . 9 . 10 . . 4 . 7 . . . . . . . 6 . . . Parts Built 3 | . . . . . . . . . 1 . . . . . . 2 . . . . . . . . . . . . . . . . . . Authchips . | . . . . . . . . . . . . . . . . . . . . . . . . . . . . . . . . . . . Time 364 | . . . . . . . . . 152 . . . . . . 212 . . . . . . . . . . . . . . . . . . Total Part Build Rating 17 | . . . . . . . . . 5 . . . . . . 12 . . . . . . . . . . . . . . . . . . Parts Repaired 5 | . . . . . 1 2 . . . . . . . . . . . . . . . . 1 . . . . . . . . . 1 . Time 228 | . . . . . 26 76 . . . . . . . . . . . . . . . . 108 . . . . . . . . . 18 . Parts Recycled . | . . . . . . . . . . . . . . . . . . . . . . . . . . . . . . . . . . . Recycled Matter . | . . . . . . . . . . . . . . . . . . . . . . . . . . . . . . . . . . . Retrieved Matter . | . . . . . . . . . . . . . . . . . . . . . . . . . . . . . . . . . . . Retrieved Components 53 | . 2 . . . . 10 12 . 7 . 4 . . . . 7 . . . . . . 3 . . . . 2 3 . . . 3 . Parts Scanalyzed 14 | . . . . . 1 . . . 3 . 2 . . . . 2 . 2 . . . . 1 . . . . . . . 3 . . . Part Schematics Acquired 12 | . . . . . 1 . . . 2 . 1 . . . . 2 . 2 . . . . 1 . . . . . . . 3 . . . Parts Damaged 4 | . . . . . . . . . 1 . 1 . . . . . . 1 . . . . . . . . . . . . 1 . . . Bothacking | -11 -10 -10 -10 -9 -8 -8 -8 -8 -6 -6 -6 -6 -6 -6 -5 -5 -5 -5 -5 -5 -5 -4 -4 -4 -4 -4 -4 -3 -3 -3 -2 -2 -1 -1 ------------ Run | Yrd Mat Min Exi Min Mat Sto Rec Scr Fac Was Fac Low Low Zio Pro Fac Was Fac Upp Upp Zhi Pro Fac Ext Cet Arc Hub Res Arm Lab Res Tes Acc Com Used RIF Installer . | . . . . . . . . . . . . . . . . . . . . . . . . . . . . . . . . . . . Robots Hacked 10 | . . . . . . 1 2 . 1 . . . . 1 . . 1 . . . . . 1 1 . 1 . . . . . 1 . . Non-combat 4 | . . . . . . . 2 . 1 . . . . . . . . . . . . . 1 . . . . . . . . . . . Combat 6 | . . . . . . 1 . . . . . . . 1 . . 1 . . . . . . 1 . 1 . . . . . 1 . . Robot Hacks Applied 14 | . . . . . . 3 4 . 1 . . . . 1 . . 1 . . . . . 1 1 . 1 . . . . . 1 . . parse_system 9 | . . . . . . 3 1 . . . . . . 1 . . 1 . . . . . . 1 . 1 . . . . . 1 . . no_distress 2 | . . . . . . . 2 . . . . . . . . . . . . . . . . . . . . . . . . . . . find_chute 2 | . . . . . . . . . 1 . . . . . . . . . . . . . 1 . . . . . . . . . . . find_recycling 1 | . . . . . . . 1 . . . . . . . . . . . . . . . . . . . . . . . . . . . Relay Couplers Released . | . . . . . . . . . . . . . . . . . . . . . . . . . . . . . . . . . . . Fabnet Peak Effective % . | . . . . . . . . . . . . . . . . . . . . . . . . . . . . . . . . . . . Robots Rewired 28 | . . . . . . . 19 . . . . . . . . . . . . . . 2 . 4 . . . . 2 . . 1 . . Allies Hacked 1 | . . . . . . . 1 . . . . . . . . . . . . . . . . . . . . . . . . . . . Hacks Repelled 1 | . . . . . . . 1 . . . . . . . . . . . . . . . . . . . . . . . . . . . Allies | -11 -10 -10 -10 -9 -8 -8 -8 -8 -6 -6 -6 -6 -6 -6 -5 -5 -5 -5 -5 -5 -5 -4 -4 -4 -4 -4 -4 -3 -3 -3 -2 -2 -1 -1 -------- Run | Yrd Mat Min Exi Min Mat Sto Rec Scr Fac Was Fac Low Low Zio Pro Fac Was Fac Upp Upp Zhi Pro Fac Ext Cet Arc Hub Res Arm Lab Res Tes Acc Com Total Allies 98 | . . 2 . 3 . . 19 . 2 19 2 . . 6 . 2 20 4 . . . 2 . 8 2 . . 1 3 . . 1 2 . Largest Group 20 | . . 2 2 3 2 . 12 11 12 17 10 . . 6 . 1 20 20 . . . 2 2 5 2 2 . 1 3 3 3 1 2 1 Highest-Rated Group 768 | . . 44 44 40 32 . 171 159 185 632 403 . . 162 . 26 768 768 . . . 98 98 302 192 192 . 45 138 138 138 122 184 45 Highest-Rated Ally 159 | . . 31 31 16 16 . 34 34 34 50 46 . . 28 . 26 50 50 . . . 49 49 159 96 96 . 45 64 64 64 122 139 45 Total Orders 11 | . . . . . . . 4 3 . . . . . . . . . . . . . . . 2 . . . . . 2 . . . . STAY 4 | . . . . . . . . 2 . . . . . . . . . . . . . . . 1 . . . . . 1 . . . . FOLLOW 3 | . . . . . . . . 1 . . . . . . . . . . . . . . . 1 . . . . . 1 . . . . TUNNEL 3 | . . . . . . . 3 . . . . . . . . . . . . . . . . . . . . . . . . . . . DROP 1 | . . . . . . . 1 . . . . . . . . . . . . . . . . . . . . . . . . . . . Ally Attacks 406 | . . 10 . 1 22 . 24 . 6 83 35 . . . . . . 103 . . . 25 7 57 2 14 . . . . . 13 4 . Total Damage 15223 | . . 148 . 11 308 . 352 . 158 4351 755 . . . . . . 3984 . . . 824 848 2030 94 354 . . . . . 602 404 . Kills 74 | . . 3 . . 1 . 1 . 1 12 7 . . . . . . 27 . . . 4 5 7 . 3 . . . . . 1 2 . Allies Corrupted 3 | . . . . . . . 1 . . . . . . . . . . 1 . . . . . . . . . . . . 1 . . . Allies Melted 1 | . . . . . . . . . . . 1 . . . . . . . . . . . . . . . . . . . . . . . Intel | -11 -10 -10 -10 -9 -8 -8 -8 -8 -6 -6 -6 -6 -6 -6 -5 -5 -5 -5 -5 -5 -5 -4 -4 -4 -4 -4 -4 -3 -3 -3 -2 -2 -1 -1 ------- Run | Yrd Mat Min Exi Min Mat Sto Rec Scr Fac Was Fac Low Low Zio Pro Fac Was Fac Upp Upp Zhi Pro Fac Ext Cet Arc Hub Res Arm Lab Res Tes Acc Com Active Infowar (turns) 9980 | . 46 . . . 344 . . 403 863 208 703 288 293 213 119 814 187 785 203 155 64 1157 617 456 95 72 30 131 242 349 230 350 393 170 Optics 5144 | . . . . . . . . . . . . . . . . . . 430 203 155 64 1157 617 456 95 72 30 131 242 349 230 350 393 170 Sensors 8426 | . . . . . . . . . 852 208 703 288 293 212 119 813 187 714 192 155 64 772 607 414 . . . 99 242 349 230 350 393 170 Terrain 343 | . . . . . 343 . . . . . . . . . . . . . . . . . . . . . . . . . . . . . Structural 6412 | . . . . . . . . 403 410 1 655 257 266 199 118 779 180 600 161 155 62 466 608 456 95 72 30 131 154 . 153 1 . . Traps 2 | . . . . . . . . . . . . . . . . . . . 2 . . . . . . . . . . . . . . . Seismic 705 | . 46 . . . 153 . . . . . . . . . . . . . . . . . . . . . . . . . . . 388 118 Machine Analysis 164 | . . . . . . . . . 164 . . . . . . . . . . . . . . . . . . . . . . . . . Cloaking 2 | . . . . . . . . . . . . . . . . . 2 . . . . . . . . . . . . . . . . . ECM 19 | . . . . . . . . . . . . . 18 . . 1 . . . . . . . . . . . . . . . . . . Robot Analysis Total 6 | . . . . . . . . . . . . . . . . . . 1 . . 4 . . . . . . . 1 . . . . . Derelict Logs Recovered 12 | . . 1 . 1 . . . . . . . 1 1 1 . . . . 3 3 . 1 . . . . . . . . . . . . Drone Launches 3 | . . . . . . . . 3 . . . . . . . . . . . . . . . . . . . . . . . . . . Drone Recoveries . | . . . . . . . . . . . . . . . . . . . . . . . . . . . . . . . . . . . Exploration | -11 -10 -10 -10 -9 -8 -8 -8 -8 -6 -6 -6 -6 -6 -6 -5 -5 -5 -5 -5 -5 -5 -4 -4 -4 -4 -4 -4 -3 -3 -3 -2 -2 -1 -1 ------------- Run | Yrd Mat Min Exi Min Mat Sto Rec Scr Fac Was Fac Low Low Zio Pro Fac Was Fac Upp Upp Zhi Pro Fac Ext Cet Arc Hub Res Arm Lab Res Tes Acc Com Turns Passed 24039 | 133 1268 1076 774 954 2260 3338 1680 3247 912 208 708 288 299 266 119 823 187 785 203 155 64 1157 617 456 95 72 30 131 242 349 230 350 393 170 Spaces Moved 29374 | 52 577 604 450 550 985 1285 803 1903 2594 482 1971 966 952 1024 387 2299 231 2372 636 523 176 1479 1619 672 132 109 73 342 355 538 553 755 465 460 Core 131 | 7 . . . . . . . . . . . . . . . . . . . . . 118 . . . . . . . . . . . 6 Treads 6611 | 45 577 604 450 550 877 1276 803 1429 . . . . . . . . . . . . . . . . . . . . . . . . . . Legs . | . . . . . . . . . . . . . . . . . . . . . . . . . . . . . . . . . . . Wheels 591 | . . . . . 108 9 . 474 . . . . . . . . . . . . . . . . . . . . . . . . . . Hover . | . . . . . . . . . . . . . . . . . . . . . . . . . . . . . . . . . . . Flight 22041 | . . . . . . . . . 2594 482 1971 966 952 1024 387 2299 231 2372 636 523 176 1361 1619 672 132 109 73 342 355 538 553 755 465 454 Fastest Speed 16 | 50 160 160 160 160 155 155 170 108 20 20 20 20 16 16 20 16 24 20 20 20 24 28 28 28 34 34 34 31 31 31 32 29 29 30 Average Speed 59 | 145 160 160 160 160 162 167 170 154 21 21 22 23 23 22 23 24 24 23 23 23 25 45 28 28 34 34 34 31 31 31 32 31 30 31 Slowest Speed 305 | 160 160 160 160 160 305 170 170 170 23 23 23 24 24 93 24 95 24 28 24 24 28 250 94 28 34 34 34 31 31 31 32 35 32 50 Overloaded Moves 100 | . . . . . . . . . . . . . 5 45 . 25 . 21 1 3 . . . . . . . . . . . . . . Propulsion Burnouts . | . . . . . . . . . . . . . . . . . . . . . . . . . . . . . . . . . . . Robots Hopped 117 | . . . . . . . . . 20 . 7 2 2 6 . 6 . 9 . 5 . . 15 12 3 . . 6 . . . 18 5 1 Potential Cave-ins 2 | . . . . . . . 2 . . . . . . . . . . . . . . . . . . . . . . . . . . . Cave-ins Triggered . | . . . . . . . . . . . . . . . . . . . . . . . . . . . . . . . . . . . Teleports 1 | . . . . . . . . . . . . . . . . . . . . . . . . . . . . . 1 . . . . . Exploration Rate (%) 70 | 6 97 98 87 98 89 92 99 90 86 93 68 89 93 90 66 67 94 82 87 73 63 88 60 65 67 95 14 16 21 96 25 73 12 22 Regions Visited 34 Branch Regions 22 Pre-discovered Areas 22 | . . 2 . . 1 1 6 5 1 . . . . 1 . 1 . 1 . . 3 . . . . . . . . . . . . . Known Exits Taken 23 | . . . . . 1 1 . . . . 1 1 1 1 1 . . 1 1 1 1 1 1 1 1 1 1 1 1 1 1 1 1 . Unknown Exits Taken 7 | 1 1 1 1 1 . . 1 1 . . . . . . . . . . . . . . . . . . . . . . . . . . Scrap Searched 21 | . . 1 . 1 . . . 5 . . . 2 4 2 . . . . 1 2 . 3 . . . . . . . . . . . . Spaces Dug 366 | . 6 11 . . . 7 2 . 49 1 57 4 4 . 3 60 . 53 1 8 . 10 15 1 . 24 . 2 7 . 12 21 8 . Terrain Destroyed 860 | . 25 23 . 112 80 7 2 . 114 1 117 4 4 . 3 64 . 53 1 8 . 10 113 1 . 39 . 2 7 . 30 21 8 11 Melee 325 | . . . . . . 7 2 . 49 1 57 4 4 . 3 60 . 53 1 8 . 10 15 1 . . . 2 7 . 12 21 8 . Projectile 2 | . . . . . 2 . . . . . . . . . . . . . . . . . . . . . . . . . . . . . AOE 533 | . 25 23 . 112 78 . . . 65 . 60 . . . . 4 . . . . . . 98 . . 39 . . . . 18 . . 11 Terrain Rammed . | . . . . . . . . . . . . . . . . . . . . . . . . . . . . . . . . . . . Walls Destroyed . | . . . . . . . . . . . . . . . . . . . . . . . . . . . . . . . . . . . Machines Disabled . | . . . . . . . . . . . . . . . . . . . . . . . . . . . . . . . . . . . Actions | -11 -10 -10 -10 -9 -8 -8 -8 -8 -6 -6 -6 -6 -6 -6 -5 -5 -5 -5 -5 -5 -5 -4 -4 -4 -4 -4 -4 -3 -3 -3 -2 -2 -1 -1 --------- Run | Yrd Mat Min Exi Min Mat Sto Rec Scr Fac Was Fac Low Low Zio Pro Fac Was Fac Upp Upp Zhi Pro Fac Ext Cet Arc Hub Res Arm Lab Res Tes Acc Com Total 34377 | 81 809 668 505 608 1428 2290 1033 2210 2813 581 2119 1001 1016 1048 409 2475 361 2504 681 537 194 1918 1731 892 172 131 75 352 473 713 580 804 688 477 Wait 3326 | 3 130 12 52 27 137 760 132 287 108 93 63 15 58 21 17 63 120 31 34 11 4 372 62 198 39 3 . . 99 149 . 15 211 . Move 29117 | 51 576 603 449 549 984 1284 802 1902 2554 481 1956 961 947 1013 387 2287 230 2354 635 512 175 1478 1589 649 126 108 72 329 354 537 552 719 455 457 Hop 109 | . . . . . . . . . 20 . 7 2 2 4 . 6 . 8 . 5 . . 14 11 2 . . 6 . . . 17 4 1 Pick Up 160 | 8 12 4 1 6 39 24 5 4 14 2 5 2 . 1 . 2 . 1 . . 3 2 7 . . 2 1 3 2 3 3 4 . . Fast Attach 129 | 6 6 1 . . 22 12 . 6 4 1 3 1 1 2 . 11 4 8 2 . 4 . 7 . . 5 . . 1 10 1 3 4 4 Attach 69 | . 2 4 . 1 16 7 . . 11 1 . . . 1 . . . 1 . . 1 4 3 . 1 1 . 4 1 . 4 3 1 2 Detach 38 | . 2 . . . 12 2 . . 2 . 2 . . 1 . 1 1 3 . . 1 2 1 . . 1 . 2 . . 2 . 1 2 Swap 102 | . 5 3 1 2 24 21 7 . 4 1 6 3 3 1 1 4 . 1 2 . 1 6 1 . . 2 1 1 . . . . . 1 Drop 212 | . 7 5 2 2 47 37 5 10 25 1 9 3 1 3 . 11 4 1 3 . 5 . 11 . . 1 . 1 3 10 1 2 . 2 Fire 356 | 13 57 24 . 13 123 99 5 . . . 1 . . . . 2 . . . . . 16 . . . 2 . . . . . . . 1 Melee 602 | . . . . . . 24 74 . 67 1 67 14 4 1 4 80 2 72 5 9 . 28 18 34 4 6 1 6 13 4 17 32 12 3 Ram . | . . . . . . . . . . . . . . . . . . . . . . . . . . . . . . . . . . . Kick . | . . . . . . . . . . . . . . . . . . . . . . . . . . . . . . . . . . . Crush 77 | . 12 12 . 8 24 18 3 . . . . . . . . . . . . . . . . . . . . . . . . . . . Escape Stasis 53 | . . . . . . 2 . . . . . . . . . 8 . 24 . . . 6 . . . . . . . . . 9 . 4 Rewire 5 | . . . . . . . . 1 . . . . . . . . . . . . . 4 . . . . . . . . . . . . Trap 22 | . . . . . . . . . 4 . . . . . . . . . . . . . 18 . . . . . . . . . . . Miscellaneous . | . . . . . . . . . . . . . . . . . . . . . . . . . . . . . . . . . . . Route ------- -11/Scrapyard -10/Materials (discovered 6 exits: [*Mat x3] / [*Min x2] / [*Sub]) -10/Mines (discovered 3 exits: [*Mat x2] / [*Exi]) -10/Exiles -9/Mines (discovered 2 exits: *Mat x2) -8/Materials (discovered 3 exits: *Fac x2 / *Sto) -8/Storage (discovered 2 exits: *Fac / *Rec) -8/Recycling (discovered 2 exits: *Fac / *Scr) -8/Scraptown (discovered 2 exits: *Fac x2) -6/Factory (discovered 6 exits: *Fac x4 / *Low x2) -6/Waste -6/Factory (discovered 5 exits: *Fac x3 / *Low x2) -6/Lower Caves -6/Lower Caves (discovered 2 exits: *Fac / *Zio) -6/Zion -5/Proximity Caves -5/Factory (discovered 6 exits: *Fac x4 / *Upp x2) -5/Waste -5/Factory (discovered 6 exits: *Fac x4 / *Upp x2) -5/Upper Caves -5/Upper Caves (discovered 2 exits: *Fac / *Zhi) -5/Zhirov -4/Proximity Caves -4/Factory (discovered 8 exits: *Res x4 / *Upp x2 / *Ext x2) -4/Extension (discovered 3 exits: *Res x2 / *Cet) -4/Cetus (discovered 3 exits: Res x2 / *Arc) -4/Archives (discovered 3 exits: *Res / *Hub x2) -4/Hub_04(d) (discovered 4 exits: *Res x4) -3/Research (discovered 4 exits: Res / *Arm / Qua x2) -3/Armory (discovered 3 exits: Res x2 / *Lab) -3/Lab -2/Research (discovered 3 exits: *Acc / *Tes x2) -2/Testing -1/Access (discovered 2 exits: Sur / *Com) -1/Command (discovered 2 exits: *Sur x2) To Epsilon Eridani History --------- Turn | Location | Event 4 | -11/Scrapyard | Discovered new exit (range 16) 134 | -11/Scrapyard | Entered Materials 315 | -10/Materials | Build established: Mutant 620 | -10/Materials | Discovered new exit (range 16) 975 | -10/Materials | Discovered new exit (range 14) 1142 | -10/Materials | Discovered new exit (range 5) 1177 | -10/Materials | Discovered new exit (range 6) 1227 | -10/Materials | Discovered new exit (range 12) 1255 | -10/Materials | Discovered new exit (range 8) 1402 | -10/Materials | Entered Mines 1409 | -10/Mines | Received a Rocket Launcher from a helpful Derelict 1433 | -10/Mines | Found a Scrap Suit stashed away for nefarious purposes 1455 | -10/Mines | Found Scrap Suit 1565 | -10/Mines | Destroyed 8 combat bots 1572 | -10/Mines | Lost 3 parts (1n1u1w) 1630 | -10/Mines | Learned location of Zion (-6) 1914 | -10/Mines | Discovered new exit (range 7) 1921 | -10/Mines | Learned location of Storage (-8) 2147 | -10/Mines | Deemed a non-threat by the Exiles lab entrance 2147 | -10/Mines | Discovered new exit (range 5) 2206 | -10/Mines | Discovered new exit (range 5) 2478 | -10/Mines | Entered Exiles 2478 | -10/Exiles | Accompanied by 2 allies 2508 | -10/Exiles | Led the pair of lost Derelicts to a safe place 2524 | -10/Exiles | Met 8R-AWN 2553 | -10/Exiles | Met EX-HEX 2609 | -10/Exiles | Met EX-BIN 2653 | -10/Exiles | Build established: Scavenger-Mutant 2731 | -10/Exiles | Met EX-DEC 2823 | -10/Exiles | Visited The Gauntlet 3195 | -10/Exiles | Discovered new exit (range 10) 3252 | -10/Exiles | Entered Mines 3407 | -9/Mines | Discovered new exit (range 15) 3539 | -9/Mines | Build established: Mutant 3774 | -9/Mines | Learned Materials terminal intel 3822 | -9/Mines | Assisted by bots powering up and referring to "LRC-V3" 3841 | -9/Mines | Discovered new exit (range 15) 3899 | -9/Mines | Build established: Scavenger-Mutant 4056 | -9/Mines | Joined a pair of Derelicts in attacking an 0b10 outpost 4206 | -9/Mines | Entered Materials 4206 | -8/Materials | Accompanied by 2 allies 4206 | -8/Materials | Evolved 4 slots: Propulsion x2, Utility x2 4207 | -8/Materials | Loaded intel: 11 terminal locations 4433 | -8/Materials | Lost 6 parts (1p1n2u2w) 4599 | -8/Materials | Destroyed 7 combat bots 4879 | -8/Materials | Repaired Lgt. Treads 5111 | -8/Materials | Learned Factory trap positions 5190 | -8/Materials | Learned Factory emergency access door positions 5259 | -8/Materials | Learned 2 Storage zone layouts 5299 | -8/Materials | Garrison activated, responded to threat 5318 | -8/Materials | Learned location of Lower Caves (-6) 5368 | -8/Materials | Learned 4 Factory zone layouts 5373 | -8/Materials | Lost 3 parts (3n) 5410 | -8/Materials | Learned 4 Recycling zone layouts 5440 | -8/Materials | Identified exit to Factory 5525 | -8/Materials | Learned Factory stockpile data 5568 | -8/Materials | Discovered new exit (range 15) 5583 | -8/Materials | Learned 4 Factory zone layouts 5962 | -8/Materials | Build established: Hacker-Mutant 6286 | -8/Materials | Identified exit to Storage 6466 | -8/Materials | Entered Storage 6632 | -8/Storage | Core integrity fell below 50% 6654 | -8/Storage | Lost 5 parts (1p3n1w) 6791 | -8/Storage | Repaired Adv. Treads 7100 | -8/Storage | Garrison activated, responded to threat 7435 | -8/Storage | Discovered exit to Factory (range 14) 7536 | -8/Storage | Repaired Hrd. Medium Armor Plating 7776 | -8/Storage | Met 01-MTF 8615 | -8/Storage | Identified exit to Recycling 8682 | -8/Storage | Learned Factory trap positions 8738 | -8/Storage | Learned 2 Storage zone layouts 8784 | -8/Storage | Learned location of 1 exit from Lower Caves 8842 | -8/Storage | Learned 4 Recycling zone layouts 8875 | -8/Storage | Loaded intel: 8 trap records 8916 | -8/Storage | Learned location of Lower Caves (-7) 9686 | -8/Storage | Used back door to open Recycling access 9804 | -8/Storage | Entered Recycling 9805 | -8/Recycling | Met a Zionite searching for Scraptown 10332 | -8/Recycling | Build established: Commander-Mutant 10586 | -8/Recycling | Lost 6 allies 10687 | -8/Recycling | Discovered new exit (range 12) 11358 | -8/Recycling | Scanned before Scraplab entrance 11382 | -8/Recycling | Entered Scraplab 11397 | -8/Recycling | Discovered new exit (range 3) 11484 | -8/Recycling | Entered Scraptown 11484 | -8/Scraptown | Accompanied by 11 allies 11925 | -8/Scraptown | Visited Spacefarers 12002 | -8/Scraptown | Visited UFD Registry 12002 | -8/Scraptown | Registered with UFD as "Arcunit" 12068 | -8/Scraptown | Visited Assassins FH 12112 | -8/Scraptown | Visited CPS Storage 12143 | -8/Scraptown | Learned location of Extension (-4) 12242 | -8/Scraptown | Visited Comm Corps 12345 | -8/Scraptown | Discovered new exit (range 13) 12828 | -8/Scraptown | Visited Awakened 12886 | -8/Scraptown | Visited Botcube Research 12928 | -8/Scraptown | Visited Scrap Suit Storage 12952 | -8/Scraptown | Visited A0-MCA Data Center 12962 | -8/Scraptown | Given an A rating by A0-MCA 13197 | -8/Scraptown | Visited DA-N13 Charitable Foundation 13212 | -8/Scraptown | Found DCF Scrap (30 items) 13335 | -8/Scraptown | Visited Observation Area 13391 | -8/Scraptown | Visited Cartography Club 13731 | -8/Scraptown | Discovered new exit (range 10) 14290 | -8/Scraptown | Learned 16 Materials zone layouts 14290 | -8/Scraptown | Learned 20 Factory zone layouts 14290 | -8/Scraptown | Learned 4 Mines zone layouts 14290 | -8/Scraptown | Learned 4 Recycling zone layouts 14290 | -8/Scraptown | Learned 12 Lower Caves zone layouts 14290 | -8/Scraptown | Learned 24 Upper Caves zone layouts 14290 | -8/Scraptown | Learned 20 Proximity Caves zone layouts 14290 | -8/Scraptown | Learned location of 3 exits from Upper Caves 14290 | -8/Scraptown | Learned location of 3 exits from Proximity Caves 14328 | -8/Scraptown | Found Deep Structural Scanner 14382 | -8/Scraptown | Visited Junk Repository 14413 | -8/Scraptown | Visited Curators Association 14434 | -8/Scraptown | Visited Supply Room 14598 | -8/Scraptown | Met Optimus 14598 | -8/Scraptown | Accepted into 0bPrime 14731 | -8/Scraptown | Entered Factory 14731 | -6/Factory | Accompanied by 11 allies 14731 | -6/Factory | Evolved 4 slots: Propulsion x2, Utility x2 14732 | -6/Factory | Identified exit to Lower Caves 14733 | -6/Factory | Identified exit to Factory 14734 | -6/Factory | Loaded intel: 120 trap records 14872 | -6/Factory | Discovered exit to Factory (range 8) 14899 | -6/Factory | Lost 4 allies 14991 | -6/Factory | Fabricated Biomechanical Wings? 15070 | -6/Factory | Loaded intel: 8 recycling unit locations 15083 | -6/Factory | Loaded intel: 6 fabricator locations 15141 | -6/Factory | Learned 4 Extension zone layouts 15145 | -6/Factory | Learned location of Protoforge (-3) 15187 | -6/Factory | Learned Factory emergency access door positions 15222 | -6/Factory | Learned Factory stockpile data 15246 | -6/Factory | Learned 4 Proximity Caves zone layouts 15261 | -6/Factory | Learned location of 1 exit from Proximity Caves 15266 | -6/Factory | Learned location of 2 exits from Proximity Caves 15302 | -6/Factory | Learned location of 2 exits from Upper Caves 15339 | -6/Factory | Build established: Hacker-Scout 15437 | -6/Factory | Cargo convoy interrupted 15643 | -6/Factory | Manually triggered Chute Trap 15643 | -6/Factory | Sucked down chute 15643 | -6/Factory | Entered Waste 15646 | -6/Waste | Spotted C-40 Crusher 15647 | -6/Waste | Spotted C-40 Crusher 15656 | -6/Waste | Spotted C-40 Crusher 15656 | -6/Waste | Spotted C-40 Crusher 15657 | -6/Waste | Spotted C-40 Crusher 15660 | -6/Waste | Warlord forces began an assault 15661 | -6/Waste | Spotted C-40 Crusher 15667 | -6/Waste | Allies destroyed C-40 Crusher 15676 | -6/Waste | Allies destroyed C-40 Crusher 15677 | -6/Waste | Allies destroyed C-40 Crusher 15687 | -6/Waste | Discovered new exit (range 15) 15718 | -6/Waste | Allies destroyed C-40 Crusher 15738 | -6/Waste | Allies destroyed C-40 Crusher 15749 | -6/Waste | Allies destroyed C-40 Crusher 15779 | -6/Waste | Lost 7 allies 15789 | -6/Waste | Identified exit to Factory 15851 | -6/Waste | Entered Factory 15851 | -6/Factory | Accompanied by 10 allies 15853 | -6/Factory | Loaded intel: 101 trap records 15861 | -6/Factory | Loaded intel: 8 recycling unit locations 16034 | -6/Factory | Discovered exit to Factory (range 8) 16076 | -6/Factory | Discovered exit to Factory (range 10) 16415 | -6/Factory | Discovered exit to Factory (range 11) 16551 | -6/Factory | First assault squad dispatched 16559 | -6/Factory | Entered Lower Caves 16560 | -6/Lower Caves | Identified exit to Lower Caves 16638 | -6/Lower Caves | Learned Factory emergency access door positions 16680 | -6/Lower Caves | Learned location of 1 exit from Research 16680 | -6/Lower Caves | Learned Extension security intel 16847 | -6/Lower Caves | Entered another Lower Caves area 16849 | -6/Lower Caves | Identified exit to Zion 16864 | -6/Lower Caves | Learned location of 1 exit from Factory 16893 | -6/Lower Caves | Ambushed by wild Derelicts 16896 | -6/Lower Caves | Found DCF Scrap (17 items) 17023 | -6/Lower Caves | Encountered a Warlord checkpoint 17146 | -6/Lower Caves | Entered Zion 17153 | -6/Zion | Acquired unknown access codes intercepted by a Zionite 17165 | -6/Zion | Discovered new exit (range 16) 17167 | -6/Zion | Visited the Megawrench Repair Shop 17235 | -6/Zion | Given A8's code to call for help 17249 | -6/Zion | Gained Derelict followers 17283 | -6/Zion | Given the Hacking Drone Bay 17292 | -6/Zion | Found Prototype Device 17292 | -6/Zion | Identified Phasing AFG 17337 | -6/Zion | Turned away by Imprinter 17342 | -6/Zion | Attempted to imprint without authorization 17342 | -6/Zion | Attacked by Zionites 17387 | -6/Zion | Spotted 6P-Q4O(B) 17388 | -6/Zion | Spotted YV-VUJ(B) 17411 | -6/Zion | Identified exit to Proximity Caves 17412 | -6/Zion | Entered Proximity Caves 17531 | -5/Proximity Caves | Unaware initiated a cargo recovery operation 17531 | -5/Proximity Caves | Entered Factory 17531 | -5/Factory | Evolved 2 slots: Utility x2 17532 | -5/Factory | Identified exit to Factory 17618 | -5/Factory | Discovered new exit (range 15) 17635 | -5/Factory | Loaded intel: 8 recycling unit locations 17908 | -5/Factory | Discovered exit to Factory (range 13) 17960 | -5/Factory | Fabricated Nuclear Pulse Array? 17979 | -5/Factory | Identified exit to Upper Caves 18104 | -5/Factory | Fabricated Nuclear Pulse Array (x1) 18265 | -5/Factory | Learned Extension emergency access door positions 18294 | -5/Factory | Learned location of Upper Caves (-4) 18315 | -5/Factory | Loaded intel: 210 non-interactive machine locations 18354 | -5/Factory | Manually triggered Chute Trap 18354 | -5/Factory | Sucked down chute 18354 | -5/Factory | Entered Waste 18355 | -5/Waste | Joined by Warlord forces that had cleared the area 18355 | -5/Waste | Identified exit to Factory 18383 | -5/Waste | Found Prototype Device 18383 | -5/Waste | Identified Exp. Cloaking Device 18396 | -5/Waste | Found Prototype Device 18396 | -5/Waste | Identified Exp. Weapon Cycler 18541 | -5/Waste | Entered Factory 18541 | -5/Factory | Accompanied by 20 allies 18652 | -5/Factory | Garrison activated, responded to threat 18724 | -5/Factory | Garrison activated, responded to threat 18825 | -5/Factory | Adv. System Shield fried by hacking feedback 18841 | -5/Factory | First assault squad dispatched 18852 | -5/Factory | Learned Extension garrison access intel 18904 | -5/Factory | Learned location of Warlord (-4) 18926 | -5/Factory | Discovered exit to Factory (range 18) 18959 | -5/Factory | Discovered exit to Factory (range 20) 18975 | -5/Factory | Learned Extension garrison access intel 19027 | -5/Factory | Loaded intel: 7 recycling unit locations 19034 | -5/Factory | Learned Armory emergency access door positions 19110 | -5/Factory | Spotted B-75 Beast 19270 | -5/Factory | Noticed UFD Elites at a Recycling Unit 19326 | -5/Factory | Entered Upper Caves 19327 | -5/Upper Caves | Identified exit to Upper Caves 19328 | -5/Upper Caves | Learned location of 1 exit from Factory 19386 | -5/Upper Caves | Learned Factory security intel 19491 | -5/Upper Caves | Learned 8 Research zone layouts 19491 | -5/Upper Caves | Learned Extension trap positions 19507 | -5/Upper Caves | Encountered a Warlord checkpoint 19527 | -5/Upper Caves | Learned location of 1 exit from Upper Caves 19529 | -5/Upper Caves | Entered another Upper Caves area 19530 | -5/Upper Caves | Identified exit to Zhirov 19551 | -5/Upper Caves | Learned 12 Factory zone layouts 19573 | -5/Upper Caves | Spotted B-75 Beast 19639 | -5/Upper Caves | Learned Factory trap positions 19684 | -5/Upper Caves | Entered Zhirov 19684 | -5/Zhirov | Discovered new exit (range 3) 19696 | -5/Zhirov | Learned location of Command (-1) 19703 | -5/Zhirov | Found Alien Artifact 19703 | -5/Zhirov | Identified Integrated Dissipator 19703 | -5/Zhirov | Installed Integrated Dissipator, increased core heat dissipation (+20) 19733 | -5/Zhirov | Found Alien Artifact 19744 | -5/Zhirov | Identified exit to Proximity Caves 19748 | -5/Zhirov | Entered Proximity Caves 19751 | -4/Proximity Caves | Spotter reported a threat 19786 | -4/Proximity Caves | Spotted B-86 Titan 20842 | -4/Proximity Caves | Build established: Hacker-Mutant 20905 | -4/Proximity Caves | Entered Factory 20905 | -4/Factory | Accompanied by 2 allies 20905 | -4/Factory | Evolved 2 slots: Utility x2 20906 | -4/Factory | Identified exit to Research 20906 | -4/Factory | Identified exit to Extension 20907 | -4/Factory | Identified exit to Upper Caves 20909 | -4/Factory | Loaded intel: 103 trap records 21097 | -4/Factory | Loaded intel: 8 recycling unit locations 21167 | -4/Factory | Identified Transdimensional Reconstructor 21185 | -4/Factory | Build established: Hacker-Scout 21267 | -4/Factory | Spotted B-86 Titan 21302 | -4/Factory | Spotted B-86 Titan 21404 | -4/Factory | Learned 2 Proximity Caves zone layouts 21405 | -4/Factory | Search patrols dispatched 21436 | -4/Factory | Repaired Centrium Light Armor Plating 21455 | -4/Factory | Learned 2 Upper Caves zone layouts 21522 | -4/Factory | Entered Extension 21525 | -4/Extension | Loaded intel: 20 trap records 21542 | -4/Extension | Spotted B-86 Titan 21638 | -4/Extension | Rescued a captive Derelict 21729 | -4/Extension | Rescued A7 21736 | -4/Extension | Rescued a captive Derelict 21742 | -4/Extension | Rescued a captive Derelict 21928 | -4/Extension | Allies destroyed B-86 Titan 21928 | -4/Extension | Spotted B-86 Titan 21936 | -4/Extension | Extracted ID and sensor layout for unrecognized location from A7's data core 21965 | -4/Extension | Discovered new exit (range 22) 21975 | -4/Extension | Disrupted transfer network 21975 | -4/Extension | Identified exit to Cetus 21978 | -4/Extension | Entered Cetus 21982 | -4/Cetus | Spotted Cetus Guard 21982 | -4/Cetus | Spotted Cetus Guard 21982 | -4/Cetus | Spotted Cetus Guard 21982 | -4/Cetus | Spotted Cetus Guard 22015 | -4/Cetus | Enhanced Grunt warped into view, answering call for help 22016 | -4/Cetus | Enhanced Grunt warped into view, answering call for help 22020 | -4/Cetus | Found a strange terminal 22026 | -4/Cetus | Discovered new exit (range 22) 22033 | -4/Cetus | Identified exit to Archives 22073 | -4/Cetus | Entered Archives 22073 | -4/Archives | Accompanied by 2 allies 22086 | -4/Archives | Met Zhirov 22086 | -4/Archives | Discovered new exit (range 24) 22092 | -4/Archives | Reinforcements dispatched to Archives 22095 | -4/Archives | Discovered exit to Research (range 15) 22103 | -4/Archives | Discovered new exit (range 20) 22137 | -4/Archives | Reinforcements dispatched to Archives 22139 | -4/Archives | Zhirov warped through subspace 22144 | -4/Archives | Identified exit to Hub_04(d) 22145 | -4/Archives | Entered Hub_04(d) 22175 | -4/Hub_04(d) | Entered Research 22175 | -3/Research | Evolved 2 slots: Propulsion x1, Utility x1 22176 | -3/Research | Identified exit to Research 22220 | -3/Research | Identified exit to Armory 22220 | -3/Research | Identified exit to Quarantine 22261 | -3/Research | Loaded intel: 5 recycling unit locations 22306 | -3/Research | Entered Armory 22458 | -3/Armory | Loaded intel: 2 recycling unit locations 22470 | -3/Armory | Build established: Wizard-Scout 22492 | -3/Armory | Warped through subspace to slip node 22492 | -3/Armory | Discovered new exit (range 1) 22492 | -3/Armory | Identified exit to Lab 22548 | -3/Armory | Entered Lab 22548 | -3/Lab | Accompanied by 3 allies 22548 | -3/Lab | Discovered exit to Research (range 9) 22553 | -3/Lab | Hidden lab's door opened automatically 22553 | -3/Lab | Sensor layout match revealed 22554 | -3/Lab | Gained access to the hidden lab's interior 22600 | -3/Lab | Unable to decrypt terminal 22608 | -3/Lab | Unable to decrypt terminal 22616 | -3/Lab | Found Deep Network Scanner 22624 | -3/Lab | Found Prototype Protection 22624 | -3/Lab | Identified Exp. Powered Armor 22638 | -3/Lab | Unable to decrypt terminal 22656 | -3/Lab | Found Alien Artifact 22656 | -3/Lab | Identified Core Expander 22656 | -3/Lab | Installed Core Expander, added new Power slot 22659 | -3/Lab | Found Alien Artifact 22659 | -3/Lab | Identified Integrated Mediator 22659 | -3/Lab | Installed Integrated Mediator, increased core attachment efficiency 22669 | -3/Lab | Found Transdimensional Reconstructor 22700 | -3/Lab | Unable to decrypt terminal 22701 | -3/Lab | Unable to decrypt terminal 22863 | -3/Lab | Found Prototype Energy Cannon 22863 | -3/Lab | Identified Warp Cannon 22866 | -3/Lab | Found Prototype Energy Cannon 22866 | -3/Lab | Identified Potential Cannon 22885 | -3/Lab | Found Alien Artifact 22888 | -3/Lab | Unable to decrypt terminal 22897 | -3/Lab | Entered Research 22897 | -2/Research | Accompanied by 3 allies 22897 | -2/Research | Evolved 2 slots: Propulsion x1, Utility x1 22898 | -2/Research | Identified exit to Testing 22922 | -2/Research | Identified Core Reset Matrix 22937 | -2/Research | Spotted B-90 Cyclops 23016 | -2/Research | Loaded intel: 4 recycling unit locations 23051 | -2/Research | Discovered new exit (range 11) 23075 | -2/Research | Discovered exit to Testing (range 20) 23106 | -2/Research | Spotted B-90 Cyclops 23106 | -2/Research | Spotted B-90 Cyclops 23127 | -2/Research | Entered Testing 23129 | -2/Testing | Adv. System Shield fried by hacking feedback 23161 | -2/Testing | Lost 5 parts (1p1n3u) 23193 | -2/Testing | Found Prototype Hackware 23193 | -2/Testing | Identified System Mapper 23272 | -2/Testing | Rewired PL-05FNRVO7S7 23294 | -2/Testing | Spotted Striker 23294 | -2/Testing | Spotted Striker 23342 | -2/Testing | Spotted Alpha 7 23343 | -2/Testing | Allies destroyed Striker 23353 | -2/Testing | Stole the SGEMP Prototype 23431 | -2/Testing | Build established: Hacker-Scout 23473 | -2/Testing | Discovered new exit (range 13) 23476 | -2/Testing | Identified exit to Access 23477 | -2/Testing | Entered Access 23477 | -1/Access | Evolved 2 slots: Utility x2 23501 | -1/Access | Scraphulk reinforcements arrived? 23504 | -1/Access | Identified exit to Command 23513 | -1/Access | Identified exit to Surface 23559 | -1/Access | Repaired Nuclear Pulse Array 23853 | -1/Access | Build established: Wizard-Scout 23870 | -1/Access | Entered Command 23870 | -1/Command | Accompanied by 1 ally 24019 | -1/Command | Spotted M Guard 24019 | -1/Command | Spotted M Guard 24019 | -1/Command | Spotted Combat Programmer 24019 | -1/Command | Spotted Combat Programmer 24029 | -1/Command | Spotted Alpha 7 24029 | -1/Command | Spotted Striker 24029 | -1/Command | Spotted Executioner 24029 | -1/Command | Spotted Executioner 24029 | -1/Command | Spotted Alpha 7 24029 | -1/Command | Spotted Striker 24029 | -1/Command | Spotted Executioner 24029 | -1/Command | Spotted Executioner 24029 | -1/Command | Spotted B-99 Colossus 24030 | -1/Command | Spotted B-99 Colossus 24040 | *** | Escaped! Last Messages --------------- 24038_ System Mapper destroyed. 24038_ Critical hit (Blast). 24038_ Knocked back. 24038_ Triggered Stasis Trap. 24038_ A bubble of rippling energy engulfs the area. 24038_ Field strength at 94. 24038_ Knocked back. 24038_ Penetrated by Slug. 24038_ Slug penetrates Wall. 24039_ Penetrated by Slug. 24039_ Slug penetrates Wall. 24039_ Slug penetrates B-99 Colossus. 24039_ Penetrated by Slug. 24039_ Slug penetrates Wall. 24040_ Penetrated by Slug. 24040_ Slug penetrates Wall. 24040_ Penetrated by Slug. 24040_ Adv. Sensor Array destroyed. 24040_ Slug penetrates Wall. Map ----- +----------------------------------------------------+ | ????????#"" + ! #???????????? | | ????????# # #???????????? | | ????????# # #???????????? | | ????????# ! + #???????????? | | ????????# ######## + ???????? | | ????????# #??????#l #???????????? | | ????????# ! #??????# %gg###########???????????? | | ????????# #??????# g "#????????????????????? | | ????????# #????###;;sg##????????????????????? | | ????????########????#; ^ ^ #????????????????????? | | ????????????????????## ^^^^^##???????????????????? | | ????????????????????# ^ ^ #???????????????????? | | ????????????????????##K ^^ ##???????????????????? | | ????????????????????# ^ ^^7^ #???????????????????? | | ????????????????????#; 7^^^^##???????????????????? | | ????????????????????# EE EEK #???????????????????? | | ????????????????????##^%^% ##???????????????????? | | ????????????????????# !!! #???????????????????? | | ??????????????????#### ^^!! ;###?????????????????? | | ??????????????????# BB% ! BB #?????????????????? | | ??????????????????# BB BB #?????????????????? | | ??????????????????# ^ #?????????????????? | | ??????????????????# % #?????????????????? | | ??????????????????# #?????????????????? | | ??????????????????# "" #?????????????????? | | ??????????????????# "@ #?????????????????? | | ??????????????????# ;#????????????????? | | ??????????????????# ##????????????????? | | ??????????????????# #?????????????????? | | ??????????????????# #?????????????????? | | ??????????????????# #?????????????????? | | ??????????????????##############?????????????????? | | ?????????????????????????????????????????????????? | | ?????????????????????????????????????????????????? | | ?????????????????????????????????????????????????? | | ?????????????????????????????????????????????????? | | ?????????????????????????????????????????????????? | | ?????????????????????????????????????????????????? | | ?????????????????????????????????????????????????? | | ?????????????????????????????????????????????????? | | ?????????????????????????????????????????????????? | | ?????????????????????????????????????????????????? | | ?????????????????????????????????????????????????? | | ?????????????????????????????????????????????????? | | ?????????????????????????????????????????????????? | | ?????????????????????????????????????????????????? | | ?????????????????????????????????????????????????? | | ?????????????????????????????????????????????????? | | ?????????????????????????????????????????????????? | | ?????????????????????????????????????????????????? | +----------------------------------------------------+ Best States ------------- Heat Dissipation 72 Energy Generation 39 Energy Capacity 325 Matter Stores 300 Matter Capacity 300 Sight Range 22 Robot Scan Range 16 Terrain Scan Range 16 Terrain Scan Density 10 ECM Strength 2 Corruption Block 20 Armor Coverage 700 Core Shielding 20 Propulsion Shielding 90 Evasion (%) 66 Recoil Reduction 4 Offensive Hacking 63 Defensive Hacking 40 Authchip Count 5 Item Schematics ----------------- Seismic Detector | -10/Materials | Hacked Plasma Cutter | -8/Materials | Hacked Adv. EMP Blaster | -8/Materials | Scanalyzed Imp. Datajack | -8/Recycling | Hacked Med. Reactive Plating | -8/Recycling | Hacked Gauss Cannon | -8/Recycling | Hacked Imp. Heavy Armor Plating | -8/Recycling | Hacked Centrium Light Armor Plating | -6/Factory | Scanalyzed Mak. Cloaking Device | -6/Factory | Scanalyzed Adv. Signal Interpreter | -6/Factory | Hacked Biomechanical Wings | -6/Factory | Hacked Lrn. Terrain Scanner | -6/Factory | Hacked Adv. System Shield | -6/Factory | Hacked Lgt. Fission Core | -6/Factory | Scanalyzed Hardlight Generator | -6/Factory | Extracted Imp. Terrain Scanner | -6/Factory | Extracted Imp. Medium Treads | -5/Factory | Extracted Core Analyzer | -5/Factory | Extracted Nuclear Pulse Array | -5/Factory | Scanalyzed Imp. Surge Thruster | -5/Factory | Scanalyzed ECM Suite | -5/Factory | Extracted Adv. Melee Analysis Suite | -5/Factory | Extracted Cloaking Device | -5/Factory | Extracted Hcp. Storage Unit | -5/Factory | Extracted Fusion Bomb Launcher | -5/Factory | Hacked Lrn. Sensor Array | -5/Factory | Hacked Imp. Plasma Cutter | -5/Factory | Hacked Exp. Cloaking Device | -5/Factory | Scanalyzed Adv. System Restoration Module | -5/Factory | Scanalyzed Mic. Fission Core | -5/Factory | Extracted Hvy. Plasma Cannon | -5/Factory | Extracted Disruptor Cannon | -5/Factory | Extracted Imp. Medium Armor Plating | -5/Factory | Extracted Adv. Drone Bay | -5/Factory | Hacked Hvy. Gauss Cannon | -5/Factory | Hacked Assault Drone Bay | -5/Zhirov | Free Exp. Heat Sink | -5/Zhirov | Free Exp. Optical Array | -5/Zhirov | Free Imp. Arc Thrower | -5/Zhirov | Free Micro-nuke Launcher | -4/Factory | Scanalyzed Adv. Cryofiber Web | -4/Factory | Extracted Antimatter Reactor | -4/Factory | Extracted Stasis Canceller | -4/Factory | Extracted KE Penetrator | -4/Factory | Extracted Huge Storage Unit | -4/Factory | Extracted Adv. Transmission Jammer | -4/Factory | Hacked Plasma Lance | -2/Research | Scanalyzed Force Lance | -2/Research | Scanalyzed System Shield | -2/Research | Scanalyzed Com. Wheel | -2/Research | Extracted Biometal Leg | -2/Research | Extracted Triangulator | -2/Research | Extracted Robot Schematics ------------------ Y-64 Sentinel | -5/Factory | Hacked L-61 Swordsman | -4/Factory | Hacked Fabricated ------------ Biomechanical Wings | x1 | -6/Factory | Preloaded Nuclear Pulse Array | x1 | -5/Factory Nuclear Pulse Array | x1 | -5/Factory | Preloaded Repaired ---------- Lgt. Treads | 15% | -8/Materials Adv. Treads | 62% | -8/Storage Hrd. Medium Armor Plating | 74% | -8/Storage Centrium Light Armor Plating | 3% | -4/Factory Nuclear Pulse Array | 11% | -1/Access Alien Tech Used ----------------- Integrated Dissipator Transdimensional Reconstructor Core Expander Integrated Mediator Achievements -------------- None Challenges ------------ None Game ------ Seed PhysicsRecoilReconfigurator Manual? 0 Play Time 05:49:40 Cumulative 281.5 hours Start 2025.09.23 @ 14:45:36 End 2025.10.07 @ 16:16:10 Sessions 65 Manual Loads 0 Difficulty Rogue Special Mode None Game No. 146 Rogue 143 Adventurer 3 Explorer 0 Win Type 0 Total 8 Types 7/0/1/0/0/0/0/0/0/0 Lore% 75 Gallery% 72 Achievement% 62 Wizard Run 0 Options --------- Layout 1 ASCII 0 Keyboard 1 Movement Vi Keybinds 0 Fullscreen 1 Font 28/SmallcapsGlow Map View 50x43 Zoom Use 0% Tactical HUD 1 Map Filters NONE Filters NONE Steam X RUN: 0aaa893c-3df4-491f-b0bb-763635fcce35